Workbook

Sheet Combined Aggregate
A1: ALBERTA OPEN PROVINCIAL CHAMPIONS
A2: National Champions are highlighted in bold
A4: Event | C4: 1974 | E4: =+C4+1 -> 1975 | G4: =+E4+1 -> 1976 | I4: =+G4+1 -> 1977 | K4: =+I4+1 -> 1978
A6: Singles | C6: EDMONTON | E6: EDMONTON | G6: EDMONTON | I6: SOUTHERN | K6: NORTHERN
A7: Ladies | C7: Ebba Anderson | E7: Shar Plato | G7: Shar Plato | I7: Lyndell Brekko | K7: Jan Bennett
A9: Singles | C9: EDMONTON | E9: CENTRAL | G9: CALGARY | I9: CENTRAL * | K9: CALGARY
A10: Men's | C10: Bernie Sutton | E10: Doug Carritt | G10: Stan Black | I10: Jan Andersen | K10: Wilf Appel
A12: Ladies | C12: EDMONTON | E12: SOUTHERN* | G12: SOUTHERN | I12: SOUTHERN | K12: EDMONTON
A13: Team | C13: Ebba Anderson | E13: Isabelle Bergman | G13: Lyndell Brekko | I13: Anita Robinson | K13: Marlene Gill
C14: Ann Blackford | E14: Lyndell Brekko | G14: Eleanor Dorigatti | I14: Linda Malcomson | K14: Traudi Hesp
C15: Traudi Hesp | E15: Sandra Hunt | G15: Louise Plato | I15: Lyndell Brekko | K15: Del Gagnon
C16: Gerry Umphrey | E16: Linda Malcomson | G16: Anita Robinson | I16: Sandra Hunt | K16: Erin O'Brien
C17: Marlene Gill | E17: Anita Robinson | G17: Karlyn Spitzer | I17: Shar Williams | K17: Darien McConaghie
C18: Diane Kaptey | E18: Dianne Violini | G18: Dianne Violini | I18: Nadine Kovacs | K18: Betty Jensen
C19: Neils Jensen (Coach) | E19: Roy Cunningham (Coach) | G19: Steve Pedersen (Coach) | I19: Vic Collomb (Coach) | K19: Neils Jensen (Coach)
A21: Men's | C21: EDMONTON | E21: EDMONTON * | G21: CALGARY * | I21: SOUTHERN | K21: SOUTHERN
A22: Team | C22: Ian Fraser | E22: Dwight Anderson | G22: Wilf Appel | I22: John Rempel | K22: Frank Fernetti
C23: Bob Leenders | E23: Clare Lakeman | G23: Dave Lewis | I23: Darrell Lagler | K23: Ken King
C24: Dan Meilke | E24: Bob Leenders | G24: Al Hong | I24: Brian Stonehouse | K24: Ken Kurtz
C25: Mel Miller | E25: John Martel | G25: Gene Balone | I25: Les Dyke | K25: Jack Rumsey
C26: Chris Runnalls | E26: Bill Murphy | G26: Larry Ellert | I26: Steve Pedersen | K26: Jack Smeed
C27: Bernie Stotyn | E27: Al Noppers | G27: Don Sim | I27: Ken King | K27: Brian Stonehouse
C28: Jan Leenders (Coach) | E28: Gene Gagnon (Coach) | G28: Tom Campbell (Coach) | I28: Bert Mezei (Coach) | K28: Vic Collomb (Coach)
A30: Mixed | C30: SOUTHERN * | E30: EDMONTON | G30: CALGARY | I30: CALGARY | K30: SOUTHERN
A31: Team | C31: Ken Malcomson | E31: John Blyth | G31: Sharon Capewell | I31: Sharon Capewell | K31: Eleanor Dorigatti
C32: Linda Malcomson | E32: Ebba Anderson | G32: Chris MacKinnon | I32: Lorraine Gervais | K32: Les Dyke
C33: Steve Pedersen | E33: Rose Denman | G33: Faylene Valdes | I33: Eileen Ramsdale | K33: Dianne Violini
C34: Jeanette Smeed | E34: George Hawkins | G34: Ron Sansom | I34: Stan Black | K34: Lyndell Brekko
C35: Ken King | E35: Barry Desnoyers | G35: Tom Campbell | I35: Bob Miller | K35: Darwin Romanchuk
C36: Dianne Violini | E36: Lynn Howell | G36: Ray Miller | I36: Al Scheer | K36: Harry Topliffe
C37: Roy Cunningham | E37: Joan Robertson | G37: Bob Miller | I37: Aldo Serblin | K37: Roy Cunningham
C38: Jack Smeed (Coach) | E38: Jan Leenders(Coach) | G38: Don Sim (Coach) | I38: Don Sim (Coach) | K38: Jack Smeed (Coach)
A40: Event | C40: =+K4+1 -> 1979 | E40: =+C40+1 -> 1980 | G40: =+E40+1 -> 1981 | I40: =+G40+1 -> 1982 | K40: =+I40+1 -> 1983
C42: EDMONTON | E42: SOUTHERN | G42: CENTRAL | I42: CALGARY * | K42: CENTRAL
A43: Singles | C43: Gerry Anderson | E43: Dianne Violini | G43: Diane Morrical | I43: Charleen Hodgins | K43: Bev Meyer
A44: Ladies
C45: CENTRAL | E45: NORTHERN | G45: SOUTHERN * | I45: NORTHERN | K45: CALGARY
A46: Singles | C46: Doug Morrical | E46: Larry Scheer | G46: Darrell Lagler | I46: Ray Sylvester | K46: Terry Farquharson
A47: Men's
C48: EDMONTON | E48: EDMONTON | G48: SOUTHERN | I48: CALGARY * | K48: SOUTHERN
A49: Ladies | C49: Gerry Anderson | E49: Gerry Anderson | G49: Jeanette Smeed | I49: Bonnie Clark | K49: Dianne Violini
A50: Team | C50: Pearl Hindle | E50: Darien McConaghie | G50: Lyndell Brekko | I50: Debbie Kingsmith | K50: Lyndell Brekko
C51: Freida Schadl | E51: Barb Masse | G51: Alice Kolibas | I51: Charleen Hodgins | K51: Gayle Stuber
C52: Diana Long | E52: Jeanette MacDonald | G52: Dianne Gehring | I52: Fran Clarke | K52: Jeanette Smeed
C53: Erin O'Brien | E53: Lynn Steinraths | G53: Anita Robinson | I53: Nancy Harris | K53: Sandy Ferguson
C54: Traudi Hesp | E54: Pearl Hindle | G54: Dianne Violini | I54: Tracy Findlater | K54: Shirley Burris
C55: Gene Gagnon (Coach) | E55: Gene Gagnon (Coach) | G55: Gus Plato (Coach) | I55: Shar Williams (Coach) | K55: Mike Violini (Coach)
C57: SOUTHERN | E57: EDMONTON | G57: SOUTHERN | I57: SOUTHERN | K57: CALGARY
A58: Men's | C58: Darrell Lagler | E58: Clare Lakeman | G58: Darrell Lagler | I58: Ed Burwash | K58: Don Sim
A59: Team | C59: Brian Stonehouse | E59: Marty Bush | G59: Brian Stonehouse | I59: Frank Fernetti | K59: Terry Farquharson
C60: Ken Weitz | E60: Bob Power | G60: Ed Burwash | I60: Ken Kurtz | K60: Bob Miller
C61: Ken Kurtz | E61: Dwight Anderson | G61: Roy Cunningham | I61: Roy Cunningham | K61: Brian Rossetti
C62: Harry Topliffe | E62: Rod Jensen | G62: Ken Malcomson | I62: Duane Plato | K62: Bob Bakos
C63: Jack Smeed | E63: Mike Masse | G63: Jack Smeed | I63: Owen Gottselig | K63: Ken Norris
C64: Jack Smeed (Coach) | E64: John Martel (Coach) | G64: Don Gill (Coach) | I64: Jack Smeed (Coach) | K64: Doug Goodman (Coach)
C66: EDMONTON | E66: CALGARY | G66: SOUTHERN | I66: CALGARY | K66: CALGARY
A67: Mixed | C67: John Martel | E67: Al Hong | G67: Ken Kurtz | I67: Dennis Westover | K67: Colin Keir
A68: Team | C68: Darien McConaghie | E68: Marie Davidson | G68: Harry Topliffe | I68: Arlene Beerbaum | K68: Tom Anderson
C69: Dennis Klien | E69: Larry Ellert | G69: Bob Costanzo | I69: Barb Douglas | K69: Greg Gigliuk
C70: Audrey Sakowsky | E70: Tracy Koftinoff | G70: Frank Fernetti | I70: Greg Gigliuk | K70: Barry Martin
C71: Tom Alford | E71: Doug Goodman | G71: Janet Froehlich | I71: Bob Miller | K71: Fran Jones
C72: Sherry Lesyk | E72: Dennis Westover | G72: Alvina Cunningham | I72: Tom Anderson | K72: Nancy Harris
C73: Lloyd Cox | E73: Hubert Kenda | G73: Joanne Dewalt | I73: Dave Lewis | K73: Helen Barry
C74: Stan Hesp (Coach) | E74: John Mathews (Coach) | G74: Jerry Mezei (Coach) | I74: Doug Goodman (Coach) | K74: Shar Williams (Coach)
A76: Event | C76: =+K40+1 -> 1984 | E76: =+C76+1 -> 1985 | G76: =+E76+1 -> 1986 | I76: =+G76+1 -> 1987 | K76: =+I76+1 -> 1988
C78: CENTRAL * | E78: CENTRAL | G78: SOUTHERN | I78: CENTRAL | K78: SOUTHERN
A79: Singles | C79: Bev Meyer | E79: Bev Meyer | G79: Dianne Violini | I79: Bev Meyer | K79: Dianne Violini
A80: Ladies
C81: CALGARY | E81: SOUTHERN | G81: EDMONTON | I81: SOUTHERN | K81: CENTRAL
A82: Singles | C82: Ken Norris | E82: Roy Cunningham | G82: Dwight Anderson | I82: Ken Malcomson | K82: Mark Jackson
A83: Men's
C84: CENTRAL | E84: CENTRAL | G84: EDMONTON | I84: NORTHERN | K84: EDMONTON
A85: Ladies | C85: Bev Meyer | E85: Bev Meyer | G85: Alvina Brettnell | I85: Marie Blake | K85: Traudi Hesp
A86: Team | C86: Gale Morrical | E86: Germaine Knipple | G86: Jacque Flach | I86: Anita O'Callaghan | K86: Lainie Mailer
C87: Germaine Knipple | E87: Phyl Ward | G87: Sherry Lesyk | I87: Ivy Murray | K87: Alvina Brettnell
C88: Billie Wood | E88: Billie Wood | G88: Traudi Hesp | I88: Gloria Unger | K88: Sharon Tarasoff
C89: Geraldine Ford | E89: Carol Bradford | G89: Gerry Anderson | I89: Carol LaBoucane | K89: Donna Dolinsky
C90: Sandy Barnes | E90: Nancy Gervais | G90: Janice Jensen | I90: Betty Read | K90: Brenda Blake
C91: Louise Holmes (Coach) | E91: Louise Holmes (Coach) | G91: Don Gill (Coach) | I91: Bill Francis (Coach) | K91: Brian Goodhope (Coach)
C93: CENTRAL | E93: SOUTHERN * | G93: EDMONTON | I93: SOUTHERN | K93: EDMONTON
A94: Men's | C94: Greg Gigliuk | E94: Bill Todd | G94: Bob Leenders | I94: Ken Malcomson | K94: Roy Kania
A95: Team | C95: Lawrence Fobert | E95: Ken Kurtz | G95: Bruce Morter | I95: Brent Chambers | K95: Bruce Morter
C96: Jan Andersen | E96: Roy Cunningham | G96: Dwight Anderson | I96: John Rempel | K96: Bill Froehler
C97: Dave Nelson | E97: Ryan Bader | G97: Stan Hesp | I97: Tom Baker | K97: Gerard Parker
C98: Bill Tronnes | E98: Tom Stevenson | G98: Gord McCutcheon | I98: Murray Westling | K98: Dale Lorenz
C99: Gary Tunbridge | E99: Harry Topliffe | G99: Don MacDonald | I99: Ken Kurtz | K99: Stan Hesp
C100: Tom Alford (Coach) | E100: Jerry Mezei (Coach) | G100: George Lund (Coach) | I100: Jack Smeed (Coach) | K100: Dwight Anderson (Coach)
C102: CALGARY | E102: CALGARY * | G102: EDMONTON | I102: SOUTHERN | K102: CENTRAL *
A103: Mixed | C103: Tammy Richardson | E103: Lorraine Gervais | G103: Roy Kania | I103: Mike DiPietro | K103: Lynn Miller
A104: Team | C104: Barb Douglas | E104: Lynn Holt | G104: Pearl Hindle | I104: Robin Stanton | K104: Marg Sloan
C105: Bea MacPhail | E105: Mearle Lepla | G105: Brian Goodhope | I105: Durwin Noble | K105: Geraldine Ford
C106: Al Scheer | E106: Barry Ellert | G106: Janice Tipler | I106: Dan Rattai | K106: Greg Gigliuk
C107: Brian McGillivry | E107: Reggie Zwicker | G107: Lynn Howell | I107: Lori Kelly | K107: Fred Milner
C108: Bill Schwalm | E108: Dave Sanderson | G108: Diane Vickery | I108: Masa Goshinmon | K108: Rollie Gervais
C109: Joe Wood | E109: Bob Miller | G109: Robin Powell | I109: Pam Stonehouse | K109: Jan Andersen
C110: Fran Clarke (Coach) | E110: Don Sim (Coach) | G110: Ian Fraser (Coach) | I110: Brian Stonehouse (Coach) | K110: Tom Alford (Coach)
A112: Event | C112: =+K76+1 -> 1989 | E112: =+C112+1 -> 1990 | G112: =+E112+1 -> 1991 | I112: =+G112+1 -> 1992 | K112: =+I112+1 -> 1993
C114: CENTRAL | E114: NORTHERN | G114: NORTHERN | I114: CALGARY | K114: EDMONTON
A115: Singles | C115: Bev Gigliuk | E115: Adele Burynuik | G115: Sharlene Waldorf | I115: Susan Anderson | K115: Adele Burynuik
A116: Ladies
C117: SOUTHERN | E117: EDMONTON | G117: CENTRAL | I117: NORTHERN | K117: CENTRAL
A118: Singles | C118: Mike DiPietro | E118: Lynn Howell | G118: Greg Gigliuk | I118: Greg Dobbie | K118: Lawrence Fobert
A119: Men's
C120: SOUTHERN | E120: CENTRAL | G120: NORTHERN | I120: SOUTHERN | K120: SOUTHERN
A121: Ladies | C121: Dianne Violini | E121: Rhonda Barber | G121: Rheva Dreger | I121: Dianne Violini | K121: Dianne Violini
A122: Team | C122: Lori Kelly | E122: Nancy Gervais | G122: Milly McGregor | I122: Michele Cavanaugh | K122: Penny Noble
C123: Penny Noble | E123: Andrea Ratcliffe | G123: Sharlene Waldorf | I123: Lori Kelly | K123: Lori Kelly
C124: Pam Stonehouse | E124: Lynn Miller | G124: Carol LaBoucane | I124: Fran Kelly | K124: Jeanette Smeed
C125: Kathy Robertson | E125: Judy Grinde | G125: Ivy Murray | I125: Penny Noble | K125: Hilary Davies
C126: Marg Lovin | E126: Leanne Eriksen | G126: Clara Loyer | I126: Thora Swan | K126: Michele Cavanaugh
C127: Mike Violini (Coach) | E127: Louise Holmes (Coach) | G127: Gary Abrams (Coach) | I127: Mike Violini (Coach) | K127: Mike Violini (Coach)
C129: CALGARY | E129: EDMONTON * | G129: CENTRAL | I129: CENTRAL * | K129: CENTRAL *
A130: Men's | C130: Don Sim | E130: Brad Anderson | G130: Mark Jackson | I130: Doug Morrical | K130: Jan Andersen
A131: Team | C131: Terry Farquharson | E131: Lynn Howell | G131: Greg Gigliuk | I131: Gene Ziebarth | K131: Lawrence Fobert
C132: Roy Cunningham | E132: Roy Kania | G132: Stan Skoye | I132: Tom Alford | K132: Mike Tweedy
C133: Colin Keir | E133: Bruce Morter | G133: Lawrence Fobert | I133: Lawrence Fobert | K133: Mike DiPietro
C134: Doug Goodman | E134: Gerard Parker | G134: Gene Ziebarth | I134: Jan Andersen | K134: Greg Gigliuk
C135: Brian Rossetti | E135: Stan Hesp | G135: Tom Stevenson | I135: Harry George | K135: Rollie Gervais
C136: Wilf Kuss (Coach) | E136: Dwight Anderson (Coach) | G136: Tom Alford (Coach) | I136: Ed Gabrielson (Coach) | K136: Ed Gabrielson (Coach)
C138: CENTRAL | E138: CENTRAL | G138: NORTHERN | I138: SOUTHERN * | K138: EDMONTON
A139: Mixed | C139: Nancy Gervais | E139: Kathy Gabrielson | G139: Kathy Dyer | I139: Dan Rattai | K139: Brian Goodhope
A140: Team | C140: Lis Jorgensen | E140: Sandra Cockburn | G140: Marilyn Gray | I140: Duane Plato | K140: Doug Key
C141: Dianne Moore | E141: Marlene Gill | G141: Diane Nelson | I141: Brian Stonehouse | K141: Dwight Anderson
C142: Stan Skoye | E142: Tom Stevenson | G142: Wayne Adams | I142: Harvey Martin | K142: John Martel
C143: Tom Alford | E143: Jan Andersen | G143: Jerry Shepherd | I143: Trudy Kurtz | K143: Janice Jensen
C144: Yves Vezina | E144: Tony Steere | G144: Brian Murray | I144: Shelly Mayer | K144: Tracy Boytel
C145: Lonnie Staples | E145: Bernie Fournier | G145: Ryan Gardner | I145: Lyndell Brekko | K145: Sharon Tarasoff
C146: Bob Guthrie (Coach) | E146: Don Gill (Coach) | G146: Jim Hohne (Coach) | I146: Frank Fernetti (Coach) | K146: Danny Clapp (Coach)
A148: Event | C148: =+K112+1 -> 1994 | E148: =+C148+1 -> 1995 | G148: =+E148+1 -> 1996 | I148: =+G148+1 -> 1997 | K148: =+I148+1 -> 1998
C150: CENTRAL | E150: EDMONTON | G150: CALGARY * | I150: CALGARY * | K150: SOUTHERN *
A151: Singles | C151: Bev Gigliuk | E151: Janice Lacoursiere | G151: Jennifer Marshall | I151: Jennifer Marshall | K151: Penny Noble
A152: Ladies
C153: EDMONTON | E153: CENTRAL | G153: EDMONTON | I153: CALGARY | K153: EDMONTON
A154: Singles | C154: Russ Baldwin | E154: Doug Morrical | G154: Steve Cummings | I154: Scott Laing | K154: Bruce Morter
A155: Men's
C156: EDMONTON * | E156: SOUTHERN | G156: CALGARY * | I156: CENTRAL | K156: CALGARY
A157: Ladies | C157: Lainie Mailer | E157: Cindy Christmann | G157: Jennifer Marshall | I157: Rhonda Barber | K157: Jennifer Marshall
A158: Team | C158: Tracy Boytel | E158: Penny Noble | G158: Anne Norris | I158: Roxane Doyle | K158: Rachel McDonald
C159: Adele Burynuik | E159: Jeanette Smeed | G159: Jeannette Beaulieu | I159: Nancy Gervais | K159: Susan Anderson
C160: Donna Heidinger | E160: Fran Kelly | G160: Judy Kanigan | I160: Bev Gigliuk | K160: Pamela Marshall
C161: Pam Ibach | E161: Michele Cavanaugh | G161: Annette Bruneau | I161: Jeri-Lee Miller | K161: Anne Norris
C162: Lill Broda | E162: Dianne Violini | G162: Rachel McDonald | I162: Lynn Miller | K162: Debbie Boswell
C163: Tom Boytel (Coach) | E163: Pat Elliott (Coach) | G163: Don Marshall (Coach) | I163: Lawrence Fobert (Coach) | K163: Don Marshall (Coach)
C165: EDMONTON | E165: CALGARY | G165: EDMONTON | I165: CALGARY | K165: EDMONTON *
A166: Men's | C166: Lynn Howell | E166: Brian Hill | G166: Steve Cummings | I166: Roy Cunningham | K166: Lynn Howell
A167: Team | C167: Barrett Gamble | E167: Doug Goodman | G167: Bruce Morter | I167: Colin Keir | K167: Mike Tweedy
C168: Russ Baldwin | E168: Kevin Holdsworth | G168: Barrett Gamble | I168: Scott Laing | K168: Bruce Morter
C169: Clare Lakeman | E169: Brian Rossetti | G169: Richard Salyzyn | I169: Brian Rossetti | K169: Brad Anderson
C170: Bob Bruneau | E170: Colin Keir | G170: Kevin Kohut | I170: Robert Shanas | K170: Tom Stevenson
C171: Tom Stevenson | E171: Ken Norris | G171: Brian Goodhope | I171: Joe Wood | K171: Len Madarash
C172: Ian Fraser (Coach) | E172: Bob Edmonds (Coach) | G172: Lynn Howell (Coach) | I172: Bob Edmonds (Coach) | K172: Don MacIver (Coach)
C174: EDMONTON | E174: EDMONTON | G174: EDMONTON | I174: SOUTHERN | K174: CALGARY
A175: Mixed | C175: Bruce Morter | E175: Michelle Hoyle | G175: Leanne Eriksen | I175: Teri Holt | K175: Shannon Scott
A176: Team | C176: Ken Klassen | E176: Tracy Boytel | G176: Brad Anderson | I176: Debbie Poirier | K176: Judy Kanigan
C177: Dwight Anderson | E177: Adele Burynuik | G177: Sandra Helmer | I177: Bobbi Verpy | K177: Linda Raymond
C178: John Martel | E178: Barrett Gamble | G178: Gerard Parker | I178: Justin Bander | K178: Bob Miller
C179: Marcy Clapp | E179: Randy Clarke | G179: Lisa Hargrove | I179: Doug Campbell | K179: Scott Laing
C180: Carol Swartz | E180: Lynn Howell | G180: John Martel | I180: Durwin Noble | K180: Don Sim
C181: Janice Jensen | E181: Danny Clapp | G181: Len Madarash | I181: Dan Rattai | K181: Colin Keir
C182: Danny Clapp (Coach) | E182: Tom Boytel (Coach) | G182: Dwight Anderson (Coach) | I182: Jerry Kind (Coach) | K182: Rick Wagner (Coach)
A184: Event | C184: =+K148+1 -> 1999 | E184: =+C184+1 -> 2000 | G184: =+E184+1 -> 2001 | I184: =+G184+1 -> 2002 | K184: =+I184+1 -> 2003
C186: CALGARY | E186: CALGARY | G186: SOUTHERN | I186: SOUTHERN | K186: 2003 - EDMONTON
A187: Singles | C187: Jennifer Marshall | E187: Jennifer Marshall | G187: Dianne Violini | I187: Penny Noble | K187: Tracy Smith
A188: Ladies
C189: EDMONTON * | E189: CENTRAL * | G189: NORTHERN | I189: NORTHERN | K189: 2003 - CALGARY
A190: Singles | C190: Bruce Morter | E190: Gene Ziebarth | G190: Brian Murray | I190: Ian Dobbie | K190: Tom Stevenson
A191: Men's
C192: EDMONTON | E192: CALGARY | G192: CALGARY | I192: CALGARY | K192: 2003 - SOUTHERN
A193: Ladies | C193: Cathie Calarco | E193: Jennifer Marshall | G193: Jennifer Marshall | I193: Jennifer Marshall | K193: Dianne Violini
A194: Team | C194: Sandra Helmer | E194: Stacey Sanderson | G194: Tracy Ranta | I194: Jennifer Burgess | K194: Michele Cavanaugh
C195: Janice Lacoursiere | E195: Brenda Closen | G195: Jennifer Burgess | I195: Stacey Sanderson | K195: Kara Kurtz
C196: Michelle Kohut-Whyte | E196: Pamela Marshall | G196: Brenda Smud | I196: Melinda Shilton | K196: Penny Noble
C197: Tracy Smith | E197: Debbie Boswell | G197: Susan Anderson | I197: Susan Anderson | K197: Bobbi Sisko
C198: Carol Swartz | E198: Rachel McDonald | G198: Judy Kanigan | I198: Judy Stratton | K198: Colleen Gleed
C199: Tom Boytel (Coach) | E199: Don Marshall (Coach) | G199: Linda Raymond (Coach) | I199: Debbie Boswell (Coach) | K199: Jack Smeed (Coach)
C201: CALGARY | E201: EDMONTON * | G201: CENTRAL * | I201: SOUTHERN | K201: 2003 - EDMONTON *
A202: Men's | C202: Colin Keir | E202: Tom Stevenson | G202: Gene Ziebarth | I202: Ken Malcomson | K202: Mark Jackson
A203: Team | C203: Danny Gomboc | E203: Mark Jackson | G203: Vince Chartier | I203: Kurtis Deering | K203: Jim Norkus
C204: Len Pharoah | E204: Gord Mattern | G204: Lawrence Fobert | I204: Dan Rattai | K204: Mark Johnstone
C205: Harvie Pocza | E205: Bruce Morter | G205: Gary Baird | I205: Jim Smeed | K205: Cassey Campbell
C206: Dave Alexander | E206: Jim Norkus | G206: Brad Sinclair | I206: Duane Plato | K206: Sean Smith
C207: Brian Rossetti | E207: Kevin Johnson | G207: Bob Guthrie | I207: Derek Lewicki | K207: Darrell Bradley
C208: Shelley Struthers (Coach) | E208: Don MacIver (Coach) | G208: Eric Andersen (Coach) | I208: Fred Anderson (Coach) | K208: Don MacIver (Coach)
C210: CALGARY | E210: CALGARY * | G210: CALGARY | I210: CALGARY * | K210: 2003 - EDMONTON *
A211: Mixed | C211: Annette Bruneau | E211: Greg Koch | G211: Stacey Sanderson | I211: Rachel McDonald | K211: Treena Neufeld
A212: Team | C212: Pamela Marshall | E212: Doug Goodman | G212: Annette Bruneau | I212: Annette Bruneau | K212: Sandra Helmer
C213: Sandra Murray | E213: Len Pharoah | G213: Debbie BoswelI | I213: Shelley Slator | K213: Cathie Pearson
C214: Roy Cunningham | E214: Tracy Ranta | G214: Derek Home | I214: Rich Weber | K214: Curtis Kaplan
C215: Terry Farquharson | E215: Jeannette Doyle | G215: Greg Koch | I215: Tom Stevenson | K215: Tony Steere
C216: Rick Wagner | E216: Gail Sweeny | G216: Terry Smithson | I216: Robert Wolfson | K216: Bruce Morter
C217: Bob Miller | E217: Wilf Kuss | G217: Rich Weber | I217: TJ Carriere | K217: Lynn Howell (Coach)
C218: Doug Goodman (Coach) | E218: Fran Clarke (Coach) | G218: Rick Nowosad (Coach) | I218: Brian Rossetti (Coach)
A220: Event | C220: =+K184+1 -> 2004 | E220: =+C220+1 -> 2005 | G220: =+E220+1 -> 2006 | I220: =+G220+1 -> 2007 | K220: =+I220+1 -> 2008
C222: SOUTHERN | E222: CALGARY | G222: CALGARY | I222: SOUTHERN | K222: SOUTHERN
A223: Singles | C223: Bobbi Sisko | E223: Bev Yaworenko | G223: Bev Yaworenko | I223: Bobbi Sisko | K223: Dianne Violini
A224: Ladies
C225: NORTHERN | E225: CALGARY | G225: CALGARY | I225: CALGARY * | K225: CENTRAL
A226: Singles | C226: Ian Dobbie | E226: Tom Stevenson | G226: Rick Heinrich | I226: Adam Weber | K226: Lawrence Fobert
A227: Men's
C228: EDMONTON | E228: CALGARY | G228: SOUTHERN | I228: EDMONTON | K228: CALGARY
... 147 more rows

Sheet Ladies
A1: PROVINCIAL LADIES TEAM CHAMPIONS
A3: * Indicates the team won Nationals
A5: 1974 | C5: =+A5+1 -> 1975 | E5: =+C5+1 -> 1976 | G5: =+E5+1 -> 1977 | I5: =+G5+1 -> 1978
A6: EDMONTON | C6: CALGARY * | E6: CENTRAL | G6: CALGARY | I6: SOUTHERN
A7: Ebba Anderson | C7: Bonnie Clark | E7: Rhonda Barber | G7: Jennifer Marshall | I7: Penny Hepfner
A8: Ann Blackford | C8: Debbie Kingsmith | E8: Nancy Gervais | G8: Rachel McDonald | I8: Dianne Violini
A9: Traudi Hesp | C9: Charleen Hodgins | E9: Andrea Ratcliffe | G9: Susan Anderson | I9: Michele Cavanaugh
A10: Gerry Umphrey | C10: Fran Clarke | E10: Lynn Miller | G10: Pamela Marshall | I10: Bobbi Sisko
A11: Marlene Gill | C11: Nancy Harris | E11: Judy Grinde | G11: Anne Norris | I11: Torrie Hinzman
A12: Diane Kaptey | C12: Tracy Findlater | E12: Leanne Eriksen | G12: Debbie Boswell | I12: Susan Gartry
A13: Neils Jensen (Coach) | C13: Shar Williams (Coach) | E13: Louise Holmes (Coach) | G13: Don Marshall (Coach) | I13: Ken Kurtz (Coach)
A15: =+I5+1 -> 1979 | C15: =+A15+1 -> 1980 | E15: =+C15+1 -> 1981 | G15: =+E15+1 -> 1982 | I15: =+G15+1 -> 1983
A16: EDMONTON | C16: EDMONTON | E16: SOUTHERN | G16: CALGARY * | I16: SOUTHERN
A17: Isabelle Bergman | C17: Dianne Violini | E17: Rheva Dreger | G17: Cathie Calarco | I17: Heidi Andersen
A18: Lyndell Brekko | C18: Lyndell Brekko | E18: Milly McGregor | G18: Sandra Helmer | I18: Alison Roberts
A19: Sandra Hunt | C19: Gayle Stuber | E19: Sharlene Waldorf | G19: Janice Lacoursiere | I19: Michelle Hoyle
A20: Linda Malcomson | C20: Jeanette Smeed | E20: Carol LaBoucane | G20: Michelle Kohut-Whyte | I20: Melanie O'Brien
A21: Anita Robinson | C21: Sandy Ferguson | E21: Ivy Murray | G21: Tracy Smith | I21: Janice Lacoursiere
A22: Dianne Violini | C22: Shirley Burris | E22: Clara Loyer | G22: Carol Swartz | I22: Sheena Owens
A23: Roy Cunningham (Coach) | C23: Mike Violini (Coach) | E23: Gary Abrams (Coach) | G23: Tom Boytel (Coach) | I23: Barett Gamble (Coach)
A25: =+I15+1 -> 1984 | C25: =+A25+1 -> 1985 | E25: =+C25+1 -> 1986 | G25: =+E25+1 -> 1987 | I25: =+G25+1 -> 1988
A26: SOUTHERN | C26: CENTRAL | E26: SOUTHERN | G26: CALGARY | I26: CALGARY
A27: Lyndell Brekko | C27: Bev Meyer | E27: Dianne Violini | G27: Jennifer Marshall | I27: Tracy Smith
A28: Eleanor Dorigatti | C28: Gale Morrical | E28: Michele Cavanaugh | G28: Stacey Sanderson | I28: Brittney Johnson
A29: Louise Plato | C29: Germaine Knipple | E29: Lori Kelly | G29: Brenda Closen | I29: Heather Owchar
A30: Anita Robinson | C30: Billie Wood | E30: Fran Kelly | G30: Pamela Marshall | I30: Jeri Lee Miller
A31: Karlyn Spitzer | C31: Geraldine Ford | E31: Penny Noble | G31: Debbie Boswell | I31: Bev Magnus
A32: Dianne Violini | C32: Sandy Barnes | E32: Thora Swan | G32: Rachel McDonald | I32: Judy Stratton
A33: Steve Pedersen (Coach) | C33: Louise Holmes (Coach) | E33: Mike Violini (Coach) | G33: Don Marshall (Coach) | I33: Geoff Wilson (Coach)
A35: =+I25+1 -> 1989 | C35: =+A35+1 -> 1990 | E35: =+C35+1 -> 1991 | G35: =+E35+1 -> 1992 | I35: =+G35+1 -> 1993
A36: SOUTHERN | C36: CENTRAL | E36: SOUTHERN | G36: CALGARY | I36: CALGARY
A37: Anita Robinson | C37: Bev Meyer | E37: Dianne Violini | G37: Jennifer Marshall | I37: Heather Owchar
A38: Linda Malcomson | C38: Germaine Knipple | E38: Penny Noble | G38: Tracy Ranta | I38: Tracy Smith
A39: Lyndell Brekko | C39: Phyl Ward | E39: Lori Kelly | G39: Jennifer Burgess | I39: Judy Stratton
A40: Sandra Hunt | C40: Billie Wood | E40: Jeanette Smeed | G40: Brenda Smud | I40: Pamela Wilson
A41: Shar Williams | C41: Carol Bradford | E41: Hilary Davies | G41: Susan Anderson | I41: Beverley Magnus
A42: Nadine Kovacs | C42: Nancy Gervais | E42: Michele Cavanaugh | G42: Judy Kanigan | I42: Brittney Johnson
A43: Vic Collomb (Coach) | C43: Louise Holmes (Coach) | E43: Mike Violini (Coach) | G43: Linda Raymond (Coach) | I43: Geoff Wilson (Coach)
A45: =+I35+1 -> 1994 | C45: =+A45+1 -> 1995 | E45: =+C45+1 -> 1996 | G45: =+E45+1 -> 1997 | I45: =+G45+1 -> 1998
A46: EDMONTON | C46: EDMONTON | E46: EDMONTON * | G46: CALGARY | I46: CALGARY
A47: Marlene Gill | C47: Alvina Brettnell | E47: Lainie Mailer | G47: Jennifer Marshall | I47: Tracy Smith
A48: Traudi Hesp | C48: Jacque Flach | E48: Tracy Boytel | G48: Jennifer Burgess | I48: Tracey Holdsworth
A49: Del Gagnon | C49: Sherry Lesyk | E49: Adele Burynuik | G49: Stacey Sanderson | I49: Brenda McCannel
A50: Erin O'Brien | C50: Traudi Hesp | E50: Donna Heidinger | G50: Melinda Shilton | I50: Stacey Sanderson
A51: Darien McConaghie | C51: Gerry Anderson | E51: Pam Ibach | G51: Susan Anderson | I51: Jeri Lee Miller
A52: Betty Jensen | C52: Janice Jensen | E52: Lill Broda | G52: Judy Stratton | I52: Melynda Bruneau
A53: Neils Jensen (Coach) | C53: Don Gill (Coach) | E53: Tom Boytel (Coach) | G53: Debbie Boswell (Coach) | I53: Geoff Wilson (Coach)
A55: =+I45+1 -> 1999 | C55: =+A55+1 -> 2000 | E55: =+C55+1 -> 2001 | G55: =+E55+1 -> 2002 | I55: =+G55+1 -> 2003
A56: EDMONTON | C56: NORTHERN | E56: SOUTHERN | G56: SOUTHERN | I56: CALGARY
A57: Gerry Anderson | C57: Marie Blake | E57: Cindy Christmann | G57: Dianne Violini | I57: Beverley Magnus
A58: Pearl Hindle | C58: Anita O'Callaghan | E58: Penny Noble | G58: Michele Cavanaugh | I58: Jennifer Ladan
A59: Freida Schadl | C59: Ivy Murray | E59: Jeanette Smeed | G59: Kara Kurtz | I59: Tracy Smith
A60: Diana Long | C60: Gloria Unger | E60: Fran Kelly | G60: Penny Noble | I60: Annette Bruneau
A61: Erin O'Brien | C61: Carol LaBoucane | E61: Michele Cavanaugh | G61: Bobbi Sisko | I61: Sheena Owens
A62: Traudi Hesp | C62: Betty Read | E62: Dianne Violini | G62: Colleen Gleed | I62: Stacey Sanderson
A63: Gene Gagnon (Coach) | C63: Bill Francis (Coach) | E63: Pat Elliott (Coach) | G63: Jack Smeed (Coach) | I63: Brenda McCannel (Coach
A65: =+I55+1 -> 2004 | C65: =+A65+1 -> 2005 | E65: =+C65+1 -> 2006 | G65: =+E65+1 -> 2007 | I65: =+G65+1 -> 2008
A66: EDMONTON | C66: EDMONTON | E66: CALGARY * | G66: EDMONTON | I66: EDMONTON
A67: Gerry Anderson | C67: Traudi Hesp | E67: Jennifer Marshall | G67: Heather Wellman | I67: Annette Campbell
A68: Darien McConaghie | C68: Lainie Mailer | E68: Anne Norris | G68: Michelle Hoyle | I68: Halea Desutter
A69: Barb Masse | C69: Alvina Brettnell | E69: Jeannette Beaulieu | G69: Larae Hurst | I69: Jennifer Baker
A70: Jeanette MacDonald | C70: Sharon Tarasoff | E70: Judy Kanigan | G70: Tracy Smith | I70: Heidi Mapstone
A71: Lynn Steinraths | C71: Donna Dolinsky | E71: Annette Bruneau | G71: Heidi Andersen | I71: Melissa Werrell
A72: Pearl Hindle | C72: Brenda Blake | E72: Rachel McDonald | G72: Michelle Gairdner | I72: Christine Wren
A73: Gene Gagnon (Coach) | C73: Brian Goodhope (Coach) | E73: Don Marshall (Coach) | G73: Tom Boytel (Coach) | I73: Gerry Anderson (Coach)
A75: =+I65+1 -> 2009 | C75: =+A75+1 -> 2010 | E75: =+C75+1 -> 2011 | G75: =+E75+1 -> 2012 | I75: =+G75+1 -> 2013
A76: SOUTHERN | C76: SOUTHERN | E76: CENTRAL | G76: CALGARY | I76: EDMONTON
A77: Jeanette Smeed | C77: Dianne Violini | E77: Rhonda Barber | G77: Stacey Sanderson | I77: Michelle Hoyle
A78: Lyndell Brekko | C78: Lori Kelly | E78: Roxane Doyle | G78: Shantelle Szuch | I78: Heidi Mapstone
A79: Alice Kolibas | C79: Penny Noble | E79: Nancy Gervais | G79: Annette Bruneau | I79: Halea DeSutter
A80: Dianne Gehring | C80: Pam Stonehouse | E80: Bev Gigliuk | G80: Susan Anderson | I80: Jennifer Baker
A81: Anita Robinson | C81: Kathy Robertson | E81: Jeri-Lee Miller | G81: Brenda McCannel | I81: Caity Shearer
A82: Dianne Violini | C82: Marg Lovin | E82: Lynn Miller | G82: Bev Yaworenko | I82: Annette Campbell
A83: Gus Plato (Coach) | C83: Mike Violini (Coach) | E83: Lawrence Fobert (Coach) | G83: Debbie Boswell (Coach) | I83: Gerry Anderson (Coach)
A85: =+I75+1 -> 2014 | C85: =+A85+1 -> 2015 | E85: =+C85+1 -> 2016 | G85: =+E85+1 -> 2017 | I85: =+G85+1 -> 2018
A86: CALGARY * | C86: CALGARY | E86: EDMONTON | G86: EDMONTON | I86: CALGARY
A87: Jennifer Ladan | C87: Ann Marie Wilton | E87: Jennifer Baker | G87: Michelle Hoyle | I87: Jennifer Ladan
A88: Beverley Magnus | C88: Jessica Boundridge | E88: Heidi Mapstone | G88: Rose Gigliuk | I88: Stacey Sanderson
A89: JeriLee Meadus | C89: Deena Ritchie | E89: Caity Shearer | G89: Michelle Heidinger | I89: Kelsy Wilton
A90: Melynda Bruneau | C90: Kelsy Wilton | E90: Katie Harasymchuk | G90: Caity Hicks | I90: Ann-Marie Wilton
A91: Sheena Owens | C91: Annette Bruneau | E91: Halea DeSutter | G91: Halea DeSutter | I91: Deena Ritchie
A92: Ann-Marie Wilton | C92: Amber Ashton | E92: Shae-Lyn Lanovaz | G92: Julie Orobko | I92: Christine Pocza
A93: Tom Stevenson (Coach) | C93: Harvie Pocza (Coach) | E93: Lori Thomas (Coach) | G93: Len Madarash (Coach) | I93: Harvie Pocza (Coach)
A95: =+I85+1 -> 2019 | C95: =+A95+1 -> 2020 | E95: =+C95+1 -> 2021 | G95: =+E95+1 -> 2022 | I95: =+G95+1 -> 2023
A96: EDMONTON * | G96: EDMONTON | I96: EDMONTON *
A97: Heidi Mapstone | G97: Jenna Lamoureux | I97: Jenna Lamoureux
A98: Jennifer Baker | G98: Heidi Mapstone | I98: Katie Rayner
A99: Michelle Heidinger | C99: Covid | E99: Covid | G99: Julie Orobko | I99: Julie Orobko
A100: Katy Rayner | C100: Cancellation | E100: Cancellation | G100: Katie Rayner | I100: Heidi Mapstone
A101: Annette Campbell | G101: Michelle Hoyle | I101: Jamie McAra
A102: Rose Gigliuk | G102: Katelyn Ayoub | I102: Madison Jenkins
A103: Desiree Tytgat (Coach) | G103: Len Madarash (Coach) | I103: Desiree Amos (Coach)
A105: =+I95+1 -> 2024 | C105: =+A105+1 -> 2025 | E105: =+C105+1 -> 2026 | G105: =+E105+1 -> 2027 | I105: =+G105+1 -> 2028
A106: 2024 - EDMONTON *
A107: Jenna Lamoureux
A108: Katelynn Ayoub
A109: Julie Orobko
A110: Jamie McAra
A111: Heidi Mapstone
A112: Natalya Langevin
A113: Desiree Tytgat (Coach)

Sheet Men
A1: PROVINCIAL MEN'S TEAM CHAMPIONS
A3: * Indicates the team won Nationals
A5: 1974 | C5: =+A5+1 -> 1975 | E5: =+C5+1 -> 1976 | G5: =+E5+1 -> 1977 | I5: =+G5+1 -> 1978
A6: EDMONTON | C6: CALGARY * | E6: EDMONTON * | G6: EDMONTON * | I6: CENTRAL
A7: Ian Fraser | C7: Ed Burwash | E7: Brad Anderson | G7: Lynn Howell | I7: Lawrence Fobert
A8: Bob Leenders | C8: Frank Fernetti | E8: Lynn Howell | G8: Mike Tweedy | I8: Geno Ziebarth
A9: Dan Meilke | C9: Ken Kurtz | E9: Roy Kania | G9: Bruce Morter | I9: Shelby Chrest
A10: Mel Miller | C10: Roy Cunningham | E10: Bruce Morter | G10: Brad Anderson | I10: Blair Pizzey
A11: Chris Runnalls | C11: Duane Plato | E11: Gerard Parker | G11: Tom Stevenson | I11: Greg Gigliuk
A12: Bernie Stotyn | C12: Owen Gottselig | E12: Stan Hesp | G12: Len Madarash | I12: Brad Aasen
A13: Jan Leenders (Coach) | C13: Jack Smeed (Coach) | E13: Dwight Anderson (Coach) | G13: Don MacIver (Coach) | I13: Bob Guthrie (Coach)
A15: =+I5+1 -> 1979 | C15: =+A15+1 -> 1980 | E15: =+C15+1 -> 1981 | G15: =+E15+1 -> 1982 | I15: =+G15+1 -> 1983
A16: EDMONTON * | C16: CALGARY | E16: CENTRAL | G16: CALGARY | I16: CALGARY
A17: Dwight Anderson | C17: Don Sim | E17: Mark Jackson | G17: Colin Keir | I17: Rich Weber
A18: Clare Lakeman | C18: Terry Farquharson | E18: Greg Gigliuk | G18: Danny Gomboc | I18: Adam Weber
A19: Bob Leenders | C19: Bob Miller | E19: Stan Skoye | G19: Len Pharoah | I19: Rick Heinrich
A20: John Martel | C20: Brian Rossetti | E20: Lawrence Fobert | G20: Harvie Pocza | I20: Len Pharoah
A21: Bill Murphy | C21: Bob Bakos | E21: Gene Ziebarth | G21: Dave Alexander | I21: Harvie Pocza
A22: Al Noppers | C22: Ken Norris | E22: Tom Stevenson | G22: Brian Rossetti | I22: TJ Carriere
A23: Gene Gagnon (Coach) | C23: Doug Goodman (Coach) | E23: Tom Alford (Coach) | G23: Shelley Struthers (Coach) | I23: Linda Raymond (Coach)
A25: =+I15+1 -> 1984 | C25: =+A25+1 -> 1985 | E25: =+C25+1 -> 1986 | G25: =+E25+1 -> 1987 | I25: =+G25+1 -> 1988
A26: CALGARY * | C26: CENTRAL | E26: CENTRAL * | G26: EDMONTON * | I26: EDMONTON *
A27: Wilf Appel | C27: Greg Gigliuk | E27: Doug Morrical | G27: Tom Stevenson | I27: Mark Johnstone
A28: Dave Lewis | C28: Lawrence Fobert | E28: Gene Ziebarth | G28: Mark Jackson | I28: Sean Heller
A29: Al Hong | C29: Jan Andersen | E29: Tom Alford | G29: Gord Mattern | I29: Brett Wren
A30: Gene Balone | C30: Dave Nelson | E30: Lawrence Fobert | G30: Bruce Morter | I30: Perry Gillam
A31: Larry Ellert | C31: Bill Tronnes | E31: Jan Andersen | G31: Jim Norkus | I31: Bruce Morter
A32: Don Sim | C32: Gary Tunbridge | E32: Harry George | G32: Kevin Johnson | I32: Matt Schultz
A33: Tom Campbell (Coach) | C33: Tom Alford (Coach) | E33: Ed Gabrielson (Coach) | G33: Don MacIver (Coach) | I33: Lynn Howell (Coach)
A35: =+I25+1 -> 1989 | C35: =+A35+1 -> 1990 | E35: =+C35+1 -> 1991 | G35: =+E35+1 -> 1992 | I35: =+G35+1 -> 1993
A36: SOUTHERN | C36: SOUTHERN * | E36: CENTRAL * | G36: CENTRAL * | I36: SOUTHERN
A37: John Rempel | C37: Bill Todd | E37: Jan Andersen | G37: Gene Ziebarth | I37: Rob Price
A38: Darrell Lagler | C38: Ken Kurtz | E38: Lawrence Fobert | G38: Vince Chartier | I38: Kurtis Deering
A39: Brian Stonehouse | C39: Roy Cunningham | E39: Mike Tweedy | G39: Lawrence Fobert | I39: Duane Plato
A40: Les Dyke | C40: Ryan Bader | E40: Mike DiPietro | G40: Gary Baird | I40: Darren Bridge
A41: Steve Pedersen | C41: Tom Stevenson | E41: Greg Gigliuk | G41: Brad Sinclair | I41: Dan Rattai
A42: Ken King | C42: Harry Topliffe | E42: Rollie Gervais | G42: Bob Guthrie | I42: Jim Vercammen
A43: Bert Mezei (Coach) | C43: Jerry Mezei (Coach) | E43: Ed Gabrielson (Coach) | G43: Eric Andersen (Coach) | I43: Fred Anderson (Coach)
A45: =+I35+1 -> 1994 | C45: =+A45+1 -> 1995 | E45: =+C45+1 -> 1996 | G45: =+E45+1 -> 1997 | I45: =+G45+1 -> 1998
A46: SOUTHERN | C46: EDMONTON | E46: EDMONTON | G46: SOUTHERN | I46: EDMONTON *
A47: Frank Fernetti | C47: Bob Leenders | E47: Lynn Howell | G47: Ken Malcomson | I47: Tim Wiseman
A48: Ken King | C48: Bruce Morter | E48: Barrett Gamble | G48: Kurtis Deering | I48: Mark Johnstone
A49: Ken Kurtz | C49: Dwight Anderson | E49: Russ Baldwin | G49: Dan Rattai | I49: Bruce Morter
A50: Jack Rumsey | C50: Stan Hesp | E50: Clare Lakeman | G50: Jim Smeed | I50: Brett Mapstone
A51: Jack Smeed | C51: Gord McCutcheon | E51: Bob Bruneau | G51: Duane Plato | I51: Sean Heller
A52: Brian Stonehouse | C52: Don MacDonald | E52: Tom Stevenson | G52: Derek Lewicki | I52: Dexter Wiseman
A53: Vic Collomb (Coach) | C53: George Lund (Coach) | E53: Ian Fraser (Coach) | G53: Fred Anderson (Coach) | I53: Lynn Howell (Coach)
A55: =+I45+1 -> 1999 | C55: =+A55+1 -> 2000 | E55: =+C55+1 -> 2001 | G55: =+E55+1 -> 2002 | I55: =+G55+1 -> 2003
A56: SOUTHERN | C56: SOUTHERN | E56: CALGARY | G56: EDMONTON * | I56: CALGARY *
A57: Darrell Lagler | C57: Ken Malcomson | E57: Brian Hill | G57: Mark Jackson | I57: Adam Weber
A58: Brian Stonehouse | C58: Brent Chambers | E58: Doug Goodman | G58: Jim Norkus | I58: TJ Carriere
A59: Ken Weitz | C59: John Rempel | E59: Kevin Holdsworth | G59: Mark Johnstone | I59: Mark Miller
A60: Ken Kurtz | C60: Tom Baker | E60: Brian Rossetti | G60: Cassey Campbell | I60: Danny Gomboc
A61: Harry Topliffe | C61: Murray Westling | E61: Colin Keir | G61: Sean Smith | I61: Eric Christensen
A62: Jack Smeed | C62: Ken Kurtz | E62: Ken Norris | G62: Darrell Bradley | I62: Stevan Loertscher
A63: Jack Smeed (Coach) | C63: Jack Smeed (Coach) | E63: Bob Edmonds (Coach) | G63: Don MacIver (Coach) | I63: Brian Rossetti (Coach)
A65: =+I55+1 -> 2004 | C65: =+A65+1 -> 2005 | E65: =+C65+1 -> 2006 | G65: =+E65+1 -> 2007 | I65: =+G65+1 -> 2008
A66: EDMONTON | C66: EDMONTON | E66: EDMONTON | G66: EDMONTON | I66: EDMONTON
A67: Clare Lakeman | C67: Roy Kania | E67: Steve Cummings | G67: Mark Johnstone | I67: Mark Johnstone
A68: Marty Bush | C68: Bruce Morter | E68: Bruce Morter | G68: Steve Stasiuk | I68: Mike Lacoursiere
A69: Bob Power | C69: Bill Froehler | E69: Barrett Gamble | G69: Sean Smith | I69: Derek Gall
A70: Dwight Anderson | C70: Gerard Parker | E70: Richard Salyzyn | G70: Darrell Bradley | I70: Aaron Arndt
A71: Rod Jensen | C71: Dale Lorenz | E71: Kevin Kohut | G71: Mark Jackson | I71: Matt Schultz
A72: Mike Masse | C72: Stan Hesp | E72: Brian Goodhope | G72: Marty Bush | I72: Brett Wren
A73: John Martel (Coach) | C73: Dwight Anderson (Coach) | E73: Lynn Howell (Coach) | G73: Lynn Howell (Coach) | I73: Lynn Howell (Coach)
A75: =+I65+1 -> 2009 | C75: =+A75+1 -> 2010 | E75: =+C75+1 -> 2011 | G75: =+E75+1 -> 2012 | I75: =+G75+1 -> 2013
A76: SOUTHERN | C76: CALGARY | E76: CALGARY | G76: CENTRAL * | I76: EDMONTON
A77: Darrell Lagler | C77: Don Sim | E77: Roy Cunningham | G77: Brad Aasen | I77: Brett Mapstone
A78: Brian Stonehouse | C78: Terry Farquharson | E78: Colin Keir | G78: Gary Baird | I78: Tim Wiseman
A79: Ed Burwash | C79: Roy Cunningham | E79: Scott Laing | G79: Vince Chartier | I79: Rimo Nestor
A80: Roy Cunningham | C80: Colin Keir | E80: Brian Rossetti | G80: Lawrence Fobert | I80: Matt Schultz
A81: Ken Malcomson | C81: Doug Goodman | E81: Robert Shanas | G81: Blair Pizzey | I81: Sean Smith
A82: Jack Smeed | C82: Brian Rossetti | E82: Joe Wood | G82: Greg Gigliuk | I82: Dexter Wiseman
A83: Don Gill (Coach) | C83: Wilf Kuss (Coach) | E83: Bob Edmonds (Coach) | G83: Mike Tweedy (Coach) | I83: Cassey Campbell (Coach)
A85: =+I75+1 -> 2014 | C85: =+A85+1 -> 2015 | E85: =+C85+1 -> 2016 | G85: =+E85+1 -> 2017 | I85: =+G85+1 -> 2018
A86: CALGARY | C86: CENTRAL | E86: CENTRAL * | G86: EDMONTON * | I86: CENTRAL
A87: Derek Home | C87: Gary Baird | E87: Gary Baird | G87: Adam Weber | I87: Gary Baird
A88: Kyle Greggain | C88: Victor Fobert | E88: Victor Fobert | G88: Freddie Tofflemire | I88: Karie Kreutz
A89: Harvie Pocza | C89: Greg Gigliuk | E89: Karie Kreutz | G89: Adam Kemp | I89: Gene Ziebarth
A90: Eric Christensen | C90: Gene Ziebarth | E90: Shelby Chrest | G90: Tim Wiseman | I90: Harvey Von Hollen
A91: Mark Miller | C91: Brandon Cockburn | E91: Erik Kjos | G91: Sean Heller | I91: Justin Langrock
A92: Rick Heinrich | C92: Erik Kjos | E92: Gene Ziebarth | G92: Evan Lacoursiere | I92: Shelby Chrest
A93: Brenda McCannel (Coach) | C93: Lynn Howell (Coach) | E93: Greg Gigliuk (Coach) | G93: Mike Lacourisere (Coach) | I93: Michael Tweedy (Coach
A95: =+I85+1 -> 2019 | C95: =+A95+1 -> 2020 | E95: =+C95+1 -> 2021 | G95: =+E95+1 -> 2022 | I95: =+G95+1 -> 2023
A96: EDMONTON * | G96: EDMONTON * | I96: EDMONTON
A97: Tim Wiseman | G97: Adam Weber | I97: Dexter Wiseman
A98: Adam Weber | G98: Tyler Tytgat | I98: Tyler Tytgat
A99: Dexter Wiseman | C99: Covid | E99: Covid | G99: Tim Wiseman | I99: Adam Weber
A100: Bradly Tytgat | C100: Cancellation | E100: Cancellation | G100: Adam Kemp | I100: Adam Kemp
A101: Michael Marciano | G101: Bradly Tytgat | I101: Jeremy Harasymchuk
A102: Curtis Dunis | G102: Brett Wren | I102: Bradly Tytgat
A103: Lynn Howell (Coach | G103: Lynn Howell (Coach) | I103: Lynn Howell (Coach)
A105: =+I95+1 -> 2024 | C105: =+A105+1 -> 2025 | E105: =+C105+1 -> 2026 | G105: =+E105+1 -> 2027 | I105: =+G105+1 -> 2028
A106: 2024 - NORTH
A107: Thomas Tomkins
A108: Robert Tomkins
A109: Dustin Thompson
A110: Israel Bellavance
A111: Sean Tomkins
A112: Rylan Willier
A113: Gerald Hafner (Coach)

Sheet Mixed
A1: PROVINCIAL MIXED TEAM CHAMPIONS
A3: * Indicates the team won Nationals
A5: 1974 | C5: =+A5+1 -> 1975 | E5: =+C5+1 -> 1976 | G5: =+E5+1 -> 1977 | I5: =+G5+1 -> 1978
A6: SOUTHERN * | C6: CALGARY * | E6: CENTRAL | G6: CALGARY | I6: CALGARY
A7: Ken Malcomson | C7: Dennis Westover | E7: Kathy Gabrielson | G7: Shannon Scott | I7: Jennifer Ladan
A8: Linda Malcomson | C8: Arlene Beerbaum | E8: Sandra Cockburn | G8: Judy Kanigan | I8: Judy Stratton
A9: Steve Pedersen | C9: Barb Douglas | E9: Marlene Gill | G9: Linda Raymond | I9: Melinda Shilton
A10: Jeanette Smeed | C10: Greg Gigliuk | E10: Tom Stevenson | G10: Bob Miller | I10: TJ Carriere
A11: Ken King | C11: Bob Miller | E11: Jan Andersen | G11: Scott Laing | I11: Robert Wolfson
A12: Dianne Violini | C12: Tom Anderson | E12: Tony Steere | G12: Don Sim | I12: Adam Weber
A13: Roy Cunningham | C13: Dave Lewis | E13: Bernie Fournier | G13: Colin Keir | I13: Brian Rossetti (Coach)
A14: Jack Smeed (Coach) | C14: Doug Goodman (Coach) | E14: Don Gill (Coach) | G14: Rick Wagner (Coach)
A16: =+I5+1 -> 1979 | C16: =+A16+1 -> 1980 | E16: =+C16+1 -> 1981 | G16: =+E16+1 -> 1982 | I16: =+G16+1 -> 1983
A17: EDMONTON | C17: CALGARY | E17: NORTHERN | G17: CALGARY | I17: EDMONTON
A18: John Blyth | C18: Colin Keir | E18: Kathy Dyer | G18: Annette Bruneau | I18: Tina Arychuk
A19: Ebba Anderson | C19: Tom Anderson | E19: Marilyn Gray | G19: Pamela Marshall | I19: Annette Gamborski
A20: Rose Denman | C20: Greg Gigliuk | E20: Diane Nelson | G20: Sandra Murray | I20: Melissa Werrell
A21: George Hawkins | C21: Barry Martin | E21: Wayne Adams | G21: Roy Cunningham | I21: Mike Lacoursiere
A22: Barry Desnoyers | C22: Fran Jones | E22: Jerry Shepherd | G22: Terry Farquharson | I22: Chance Anderson
A23: Lynn Howell | C23: Nancy Harris | E23: Brian Murray | G23: Rick Wagner | I23: Perry Gillam
A24: Joan Robertson | C24: Helen Barry | E24: Ryan Gardner | G24: Bob Miller | I24: Cisco Beyersbergen (Coach)
A25: Jan Leenders(Coach) | C25: Shar Williams (Coach) | E25: Jim Hohne (Coach) | G25: Doug Goodman (Coach)
A27: =+I16+1 -> 1984 | C27: =+A27+1 -> 1985 | E27: =+C27+1 -> 1986 | G27: =+E27+1 -> 1987 | I27: =+G27+1 -> 1988
A28: CALGARY | C28: CALGARY | E28: SOUTHERN * | G28: CALGARY * | I28: CALGARY
A29: Sharon Capewell | C29: Tammy Richardson | E29: Dan Rattai | G29: Greg Koch | I29: Jennifer Ladan
A30: Chris MacKinnon | C30: Barb Douglas | E30: Duane Plato | G30: Doug Goodman | I30: Brenda McCannel
A31: Faylene Valdes | C31: Bea MacPhail | E31: Brian Stonehouse | G31: Len Pharoah | I31: Alyssa Madsen
A32: Ron Sansom | C32: Al Scheer | E32: Harvey Martin | G32: Tracy Ranta | I32: TJ Carriere
A33: Tom Campbell | C33: Brian McGillivry | E33: Trudy Kurtz | G33: Jeannette Doyle | I33: Al Kosciuk
A34: Ray Miller | C34: Bill Schwalm | E34: Shelly Mayer | G34: Gail Sweeny | I34: Adam Weber
A35: Bob Miller | C35: Joe Wood | E35: Lyndell Brekko | G35: Wilf Kuss | I35: Linda Raymond (Coach)
A36: Don Sim (Coach) | C36: Fran Clarke (Coach) | E36: Frank Fernetti (Coach) | G36: Fran Clarke (Coach)
A38: =+I27+1 -> 1989 | C38: =+A38+1 -> 1990 | E38: =+C38+1 -> 1991 | G38: =+E38+1 -> 1992 | I38: =+G38+1 -> 1993
A39: CALGARY | C39: CALGARY * | E39: EDMONTON | G39: CALGARY | I39: SOUTHERN *
A40: Sharon Capewell | C40: Lorraine Gervais | E40: Brian Goodhope | G40: Stacey Sanderson | I40: Berenda Verpy
A41: Lorraine Gervais | C41: Lynn Holt | E41: Doug Key | G41: Annette Bruneau | I41: Colleen Floberg
A42: Eileen Ramsdale | C42: Mearle Lepla | E42: Dwight Anderson | G42: Debbie BoswelI | I42: Terri Holt
A43: Stan Black | C43: Barry Ellert | E43: John Martel | G43: Derek Home | I43: Brett Wren
A44: Bob Miller | C44: Reggie Zwicker | E44: Janice Jensen | G44: Greg Koch | I44: Mike Hirsche
A45: Al Scheer | C45: Dave Sanderson | E45: Tracy Boytel | G45: Terry Smithson | I45: Jim Smeed
A46: Aldo Serblin | C46: Bob Miller | E46: Sharon Tarasoff | G46: Rich Weber | I46: Mike Fernetti (Coach)
A47: Don Sim (Coach) | C47: Don Sim (Coach) | E47: Danny Clapp (Coach) | G47: Rick Nowosad (Coach)
A49: =+I38+1 -> 1994 | C49: =+A49+1 -> 1995 | E49: =+C49+1 -> 1996 | G49: =+E49+1 -> 1997 | I49: =+G49+1 -> 1998
A50: SOUTHERN | C50: EDMONTON | E50: EDMONTON | G50: CALGARY * | I50: CALGARY
A51: Eleanor Dorigatti | C51: Roy Kania | E51: Bruce Morter | G51: Rachel McDonald | I51: Colin Christensen
A52: Les Dyke | C52: Pearl Hindle | E52: Ken Klassen | G52: Annette Bruneau | I52: Rick Heinrich
A53: Dianne Violini | C53: Brian Goodhope | E53: Dwight Anderson | G53: Shelley Slator | I53: Kyle Greggain
A54: Lyndell Brekko | C54: Janice Tipler | E54: John Martel | G54: Rich Weber | I54: Jennifer Ladan
A55: Darwin Romanchuk | C55: Lynn Howell | E55: Marcy Clapp | G55: Tom Stevenson | I55: Pamela Wilson
A56: Harry Topliffe | C56: Diane Vickery | E56: Carol Swartz | G56: Robert Wolfson | I56: Beverley Magnus
A57: Roy Cunningham | C57: Robin Powell | E57: Janice Jensen | G57: TJ Carriere | I57: Linda Raymond (Coach)
A58: Jack Smeed (Coach) | C58: Ian Fraser (Coach) | E58: Danny Clapp (Coach) | G58: Brian Rossetti (Coach)
A60: =+I49+1 -> 1999 | C60: =+A60+1 -> 2000 | E60: =+C60+1 -> 2001 | G60: =+E60+1 -> 2002 | I60: =+G60+1 -> 2003
A61: EDMONTON | C61: SOUTHERN | E61: EDMONTON | G61: EDMONTON * | I61: CALGARY
A62: John Martel | C62: Mike DiPietro | E62: Michelle Hoyle | G62: Treena Neufeld | I62: Rich Weber
A63: Darien McConaghie | C63: Robin Stanton | E63: Tracy Boytel | G63: Sandra Helmer | I63: Tom Stevenson
A64: Dennis Klien | C64: Durwin Noble | E64: Adele Burynuik | G64: Cathie Pearson | I64: Derek Home
A65: Audrey Sakowsky | C65: Dan Rattai | E65: Barrett Gamble | G65: Curtis Kaplan | I65: Alyssa Madsen
A66: Tom Alford | C66: Lori Kelly | E66: Randy Clarke | G66: Tony Steere | I66: Brittney Johnson Olsen
A67: Sherry Lesyk | C67: Masa Goshinmon | E67: Lynn Howell | G67: Bruce Morter | I67: Linda Raymond
A68: Lloyd Cox | C68: Pam Stonehouse | E68: Danny Clapp | G68: Lynn Howell (Coach) | I68: Debbie Boswell (Coach)
A69: Stan Hesp (Coach) | C69: Brian Stonehouse (Coach) | E69: Tom Boytel (Coach)
A71: =+I60+1 -> 2004 | C71: =+A71+1 -> 2005 | E71: =+C71+1 -> 2006 | G71: =+E71+1 -> 2007 | I71: =+G71+1 -> 2008
A72: CALGARY | C72: CENTRAL * | E72: EDMONTON | G72: CENTRAL | I72: EDMONTON
A73: Al Hong | C73: Lynn Miller | E73: Leanne Eriksen | G73: Mike Tweedy | I73: Brett Mapstone
A74: Marie Davidson | C74: Marg Sloan | E74: Brad Anderson | G74: Vince Chartier | I74: Brad Aasen
A75: Larry Ellert | C75: Geraldine Ford | E75: Sandra Helmer | G75: Rollie Gervais | I75: Darrell Bradley
A76: Tracy Koftinoff | C76: Greg Gigliuk | E76: Gerard Parker | G76: Tricia Mantai | I76: Caity Shearer
A77: Doug Goodman | C77: Fred Milner | E77: Lisa Hargrove | G77: Andrea Leavitt | I77: Michelle Hoyle
A78: Dennis Westover | C78: Rollie Gervais | E78: John Martel | G78: Rhonda Barber | I78: Kristin Pitman
A79: Hubert Kenda | C79: Jan Andersen | E79: Len Madarash | G79: Dale Holfeld (Coach) | I79: Cassey Campbell (Coach)
A80: John Mathews (Coach) | C80: Tom Alford (Coach) | E80: Dwight Anderson (Coach)
A82: =+I71+1 -> 2009 | C82: =+A82+1 -> 2010 | E82: =+C82+1 -> 2011 | G82: =+E82+1 -> 2012 | I82: =+G82+1 -> 2013
A83: SOUTHERN | C83: CENTRAL | E83: SOUTHERN | G83: EDMONTON | I83: EDMONTON
A84: Ken Kurtz | C84: Nancy Gervais | E84: Teri Holt | G84: Barry Urquhart | I84: Amanda Bell
A85: Harry Topliffe | C85: Lis Jorgensen | E85: Debbie Poirier | G85: Mike Lacoursiere | I85: Kristin Heller
A86: Bob Costanzo | C86: Dianne Moore | E86: Bobbi Verpy | G86: Greg Amundson | I86: Jennifer Baldwin
A87: Frank Fernetti | C87: Stan Skoye | E87: Justin Bander | G87: Heather Wellman | I87: Mark Graff
A88: Janet Froehlich | C88: Tom Alford | E88: Doug Campbell | G88: Treena Neufeld | I88: Bruce Morter
A89: Alvina Cunningham | C89: Yves Vezina | E89: Durwin Noble | G89: Christine Linnen | I89: Adam Kemp
A90: Joanne Dewalt | C90: Lonnie Staples | E90: Dan Rattai
A91: Jerry Mezei (Coach) | C91: Bob Guthrie (Coach) | E91: Jerry Kind (Coach) | G91: Dwight Anderson (Coach) | I91: Lynn Howell (Coach)
A93: =+I82+1 -> 2014 | C93: =+A93+1 -> 2015 | E93: =+C93+1 -> 2016 | G93: =+E93+1 -> 2017 | I93: =+G93+1 -> 2018
A94: EDMONTON | C94: CALGARY | E94: EDMONTON * | G94: CALGARY | I94: CALGARY
A95: Jesse Bouchard | C95: Eric Christensen | E95: Chris Hyslop | G95: Susan Anderson | I95: Mark Polivchuk
A96: Adam Kemp | C96: Rick Heinrich | E96: Mike Lacoursiere | G96: Christine Pocza | I96: Parker Anderson
A97: Brett Mapstone | C97: Bryan Hirst | E97: Matt Schultz | G97: Chirstie Wright | I97: Rick Heinrich
A98: Shannon Roden | C98: Brittney Johnson | E98: Rose Gigliuk | G98: Harvie Pocza | I98: Maria Dalton
A99: Annette Campbell | C99: Melynda Bruneau | E99: Melissa Werrell | G99: Mark Polivchuk | I99: Judy Stratton
A100: Halea DeSutter | C100: Beverley Magnus | E100: Michelle Hoyle | G100: Rick Heinrich | I100: Beverley Magnus
A101: Cassey Campbell (Coach) | C101: Tom Stevenson (Coach) | E101: Casey Campbell (Coach) | G101: Geoff Wilson (Coach) | I101: Brenda McCannel (Coach)
A103: =+I93+1 -> 2019 | C103: =+A103+1 -> 2020 | E103: =+C103+1 -> 2021 | G103: =+E103+1 -> 2022 | I103: =+G103+1 -> 2023
A104: EDMONTON | G104: CALGARY | I104: EDMONTON
A105: Brett Wren | G105: Beverly Magnus | I105: Cody Steere
A106: Brett Mapstone | G106: Deena Ritchie | I106: Aaron Arndt
A107: Adam Kempt | C107: Covid | E107: Covid | G107: Pamela Wilson | I107: Brett Mapstone
A108: Brittnee Lakusta | C108: Cancellation | E108: Cancellation | G108: Rob Wolfson | I108: Katelynn Ayoub
A109: Julie Orobko | G109: Ian Howe | I109: Caity Hicks
A110: Christine Wren | G110: Mike Herbert | I110: Danielle DeBlois
A111: Gerry Anderson (Coach) | G111: Geoff Wilson (Coach) | I111: Tim Wiseman (Coach)
A113: =+I103+1 -> 2024 | C113: =+A113+1 -> 2025 | E113: =+C113+1 -> 2026 | G113: =+E113+1 -> 2027 | I113: =+G113+1 -> 2028
A114: 2024 - EDMONTON *
A115: Adam Weber
A116: Cody Jubinville
A117: Adam Kemp
A118: Katie Rayner
A119: Keera Usman
A120: Madison Jenkins
A121: Chris Hyslop (Coach)

Sheet Singles
A1: PROVINCINAL SINGLES CHAMPIONS
A3: LADIES CHAMPION | D3: MEN'S SINGLES
A4: Champion | B4: Zone | C4: Year | D4: Champion | E4: Zone
A5: Ebba Anderson | B5: Edmonton | C5: 1974 | D5: Bernie Sutton | E5: Edmonton
A6: Shar Plato | B6: Edmonton | C6: 1975 | D6: Doug Carritt | E6: Central
A7: Shar Plato | B7: Edmonton | C7: 1976 | D7: Stan Black | E7: Calgary
A8: Lyndell Brekko | B8: Southern | C8: 1977 | D8: Jan Andersen | E8: Central *
A9: Jan Bennett | B9: Northern | C9: 1978 | D9: Wilf Appel | E9: Calgary
A10: Gerry Anderson | B10: Edmonton | C10: 1979 | D10: Doug Morrical | E10: Central
A11: Dianne Violini | B11: Southern | C11: 1980 | D11: Larry Scheer | E11: Northern
A12: Diane Morrical | B12: Central | C12: 1981 | D12: Darrell Lagler | E12: Southern *
A13: Charleen Hodgins | B13: Calgary * | C13: 1982 | D13: Ray Sylvester | E13: Northern
A14: Bev Meyer | B14: Central | C14: 1983 | D14: Terry Farquharson | E14: Calgary
A15: Bev Meyer | B15: Central * | C15: 1984 | D15: Ken Norris | E15: Calgary
A16: Bev Meyer | B16: Central | C16: 1985 | D16: Roy Cunningham | E16: Southern
A17: Dianne Violini | B17: Southern | C17: 1986 | D17: Dwight Anderson | E17: Edmonton
A18: Bev Meyer | B18: Central | C18: 1987 | D18: Ken Malcomson | E18: Southern
A19: Dianne Violini | B19: Southern | C19: 1988 | D19: Mark Jackson | E19: Central
A20: Bev Gigliuk | B20: Central | C20: 1989 | D20: Mike DiPietro | E20: Southern
A21: Adele Burynuik | B21: Northern | C21: 1990 | D21: Lynn Howell | E21: Edmonton
A22: Sharlene Waldorf | B22: Northern | C22: 1991 | D22: Greg Gigliuk | E22: Central
A23: Susan Anderson | B23: Calgary | C23: 1992 | D23: Greg Dobbie | E23: Northern
A24: Adele Burynuik | B24: Edmonton | C24: 1993 | D24: Lawrence Fobert | E24: Central
A25: Bev Gigliuk | B25: Central | C25: 1994 | D25: Russ Baldwin | E25: Edmonton
A26: Janice Lacoursiere | B26: Edmonton | C26: 1995 | D26: Doug Morrical | E26: Central
A27: Jennifer Marshall | B27: Calgary * | C27: 1996 | D27: Steve Cummings | E27: Edmonton
A28: Jennifer Marshall | B28: Calgary * | C28: 1997 | D28: Scott Laing | E28: Calgary
A29: Penny Noble | B29: Southern * | C29: 1998 | D29: Bruce Morter | E29: Edmonton
A30: Jennifer Marshall | B30: Calgary | C30: 1999 | D30: Bruce Morter | E30: Edmonton *
A31: Jennifer Marshall | B31: Calgary | C31: 2000 | D31: Gene Ziebarth | E31: Central *
A32: Dianne Violini | B32: Southern | C32: 2001 | D32: Brian Murray | E32: Northern
A33: Penny Noble | B33: Southern | C33: 2002 | D33: Ian Dobbie | E33: Northern
A34: Tracy Smith | B34: Edmonton | C34: 2003 | D34: Tom Stevenson | E34: Calgary
A35: Bobbi Sisko | B35: Southern | C35: 2004 | D35: Ian Dobbie | E35: Northern
A36: Bev Yaworenko | B36: Calgary | C36: 2005 | D36: Tom Stevenson | E36: Calgary
A37: Bev Yaworenko | B37: Calgary | C37: 2006 | D37: Rick Heinrich | E37: Calgary
A38: Bobbi Sisko | B38: Southern | C38: 2007 | D38: Adam Weber | E38: Calgary *
A39: Dianne Violini | B39: Southern | C39: 2008 | D39: Lawrence Fobert | E39: Central
A40: Michelle Hoyle | B40: Edmonton | C40: 2009 | D40: Gene Ziebarth | E40: Central
A41: Dianne Violini | B41: Southern * | C41: 2010 | D41: Mark Johnstone | E41: Edmonton
A42: Bonnie McDonald | B42: Northern | C42: 2011 | D42: Adam Weber | E42: Calgary
A43: Tara Seitz | B43: Southern | C43: 2012 | D43: Derek Home | E43: Calgary
A44: Dianne Violini | B44: Southern | C44: 2013 | D44: Victor Fobert | E44: Northern *
A45: Bonnie McDonald | B45: Northern | C45: 2014 | D45: Gary Baird | E45: Central
A46: Bonnie McDonald | B46: Northern | C46: 2015 | D46: Greg Gigliuk | E46: Central
A47: Tracy Smith | B47: Calgary | C47: 2016 | D47: Adam Weber | E47: Edmonton
A48: Bonnie McDonald | B48: Northern | C48: 2017 | D48: Mike Christmann | E48: Southern
A49: Kelsy Wilton | B49: Calgary | C49: 2018 | D49: Adam Weber | E49: Edmonton *
A50: Jennifer Baker | B50: Edmonton | C50: 2019 | D50: Adam Weber | E50: Edmonton *
A51: Covid | C51: =+C50+1 -> 2020 | D51: Covid
A52: Covid | C52: =+C51+1 -> 2021 | D52: Covid
A53: Jenna Lamoureux | B53: Edmonton | C53: 2022 | D53: Adam Weber | E53: Edmonton
A54: Jenn Baker | B54: Central | C54: 2023 | D54: Derek Home | E54: Calgary *
A55: Damara Halvorson | B55: Calgary | C55: 2024 | D55: Tyler Tytgat | E55: Edmonton *

Sheet Natl Champs
A1: ALBERTA NATIONAL CHAMPIONS
A3: LADIES TEAMS
A5: 1975 | B5: Southern | C5: Isabelle Bergman, Lyndell Brekko, Sandra Hunt, Linda Malcomson, Anita Robinson (Doell), Dianne Violini, Coach - Roy Cunningham
A7: 1982 | B7: Calgary | C7: Bonnie Clark (Jones), Debbie Kingsmith, Charlene Hodgins (Miller), Fran Clarke, Nancy Harris (Bakos),Tracy Findlater, Coach - Shar Williams
A9: 1994 | B9: Edmonton | C9: Lil Broda, Donna Heidinger, Adele Burnuik, Lainie Mailer, Pam Iback (Horne), Tracy Boytel (Smith), Coach - Tom Boytel
A11: 1996 | B11: Calgary | C11: Jennifer Marshall, Anne Norris, Jeanette Beaulieu (Doyle), Judy Kanigan (Stratton), Annette Bruneau, Rachel McDonald (Auger), Coach - Don Marshall
A13: 2014 | B13: Calgary | C13: Jennifer Ladan, Beverley Magnus, JeriLee Meadus, Melynda Bruneau, Sheena Owens, Ann-Marie Wilton, Coach - Tom Stevenson
A15: 2019 | B15: Edmonton | C15: Heidi Mapstone, Jennifer Baker, Michelle Heidinger, Katie Rayner, Annette Campbell, Rose Gigliuk, Coach - Desiree Tytgat
A17: 2023 | B17: Edmonton | C17: Jenna Lamoureux, Katie Rayner, Julie Orobko, Heidi Mapstone, Jamie McAra, Madison Jenkins, Coach Desiree Amos
A19: 2024 | B19: Edmonton | C19: Jenna Lamoureux, Katelynn Ayoub, Julie Orobko, Jamie McAra, Heidi Mapstone, Natalya Langevin, Desiree Tytgat (Coach)
A21: MENS TEAMS
A23: 1975 | B23: Edmonton | C23: Dwight Anderson, Clare Lakeman, Bob Leenders, John Martel, Bill Murphy, Al Noopers, Coach - Jan Leenders
A25: 1976 | B25: Calgary | C25: Wilf Appel, Dave Lewis, Gene Balone, Al Hong, Larry Ellert, Don Sim, Coach - Tom Campbell
A27: 1985 | B27: Southern | C27: Bill Todd, Ken Kurtz, Roy Cunningham, Ryan Bader, Tom Stevenson, Harry Topliffe, Coach - Jerry Mezei
A29: 1990 | B29: Edmonton | C29: Brad Anderson, Lynn Howell, Roy Kania, Bruce Morter, Gerard Parker, Stan Hesp, Coach - Dwight Anderson
A31: 1992 | B31: Central | C31: Doug Morrical, Gene Ziebarth, Tom Alford, Lawrence Fobert, Jan Anderson, Harry George, Coach - Ed Gabrielson
A33: 1993 | B33: Central | C33: Jan Anderson, Lawrence Fobert, Mike Tweedy, Mike DiPietro, Greg Gigliuk, Rollie Gervais, Coach - Ed Gabrielson
A35: 1998 | B35: Edmonton | C35: Lynn Howell, Mike Tweedy, Bruce Morter, Brad Anderson, Tom Stevenson, Len Madarash, Coach - Don MacIver
A37: 2000 | B37: Edmonton | C37: Tom Stevenson, Mark Jackson, Gord Mattern, Bruce Morter, Jim Norkus, Kevin Johnson, Coach - Don MacIver
A39: 2001 | B39: Central | C39: Gene Ziebarth, Vince Chartier, Lawrence Fobert, Gary Baird, Brad Sinclair, Bob Guthrie, Coach - Eric Andersen
A41: 2003 | B41: Edmonton | C41: Mark Jackson, Jim Norkus, Mark Johnstone,Cassey Campbell, Sean Smith, Darrell Bradley, Coach - Don MacIver
A43: 2005 | B43: Central | C43: Lawrence Fobert, Gary Baird, Vince Chartier, Greg Gigliuk, Brad Aasen, Blair Pizzey, Coach - Mike Tweedy
A45: 2008 | B45: Edmonton | C45: Mark Johnstone, Sean Heller, Brett Wren, Perry Gillam, Bruce Morter, Matt Schultz, Coach - Lynn Howell
A47: 2010 | B47: Edmonton | C47: Tim Wiseman, Mark Johnstone, Bruce Morter, Brett Mapstone, Sean Heller, Dexter Wiseman, Coach - Lynn Howell
A49: 2011 | B49: Calgary | C49: Adam Weber, TJ Carriere, Mark Miller, Danny Gomboc, Eric Christensen, Stevan Loertscher, Coach - Brian Rossetti
A51: 2016 | B51: Central | C51: Gary Baird, Victor Fobert, Karie Kreutz, Shelby Chrest, Erik Kjos, Gene Ziebarth, Coach - Greg Gigliuk
A53: 2017 | B53: Edmonton | C53: Adam Weber, Freddie Tofflemire, Adam Kemp, Tim Wiseman, Sean Heller, Evan Lacoursiere, Coach - Mike Lacoursiere
A55: 2019 | B55: Edmonton | C55: Tim Wiseman, Adam Weber, Dexter Wiseman, Bradly Tytgat, Michael Marciano, Curtis Dunis, Coach - Lynn Howell
A57: 2022 | B57: Edmonton | C57: Adam Weber, Tyler Tytgat, Tim Wiseman, Adam Kemp, Bradly Tytgat, Brett Wren, Lynn Howell (Coach)
A60: MIXED TEAMS
A62: 1974 | B62: Southern | C62: Jeanette Smeed, Dianne Violini, Linda Malcolmson, Ken King, Steve Pedersen, Ken Malcolmson, Roy Cunningham, Coach - Jack Smeed
A64: 1985 | B64: Calgary | C64: Lorraine Gervais, Lynn Holt, Mearle LePla, Barry Ellert, Reggie Zwicker, Dave Sanderson, Bob Miller , Coach - Don Sim
A66: 1988 | B66: Central | C66: Lynn Miller, Marg Sloan, Geraldine Ford, Greg Gigliuk, Fred Milner, Rollie Gervais, Jan Andersen, Coach - Tom Alford
A68: 1992 | B68: Southern | C68: Lyndell Brekko, Trudy Kurtz, Shelly Mayer, Brian Stonehouse, Duane Plato, Dan Rattai, Harvey Martin, Coach - Frank Fernetti
A70: 2000 | B70: Calgary | C70: Tracy Ranta (Holdsworth), Jeannette Doyle, Gail Sweeny (Elaschuk), Greg Koch, Doug Goodman, Len Pharoah, John Drnasin, Coach - Fran Clarke
A72: 2002 | B72: Calgary | C72: Rachel McDonald (Auger), Annette Bruneau, Heather Weber, Rich Weber, Tom Stevenson, Rob Wolfson,T.J.Carriere, Coach - Brian Rossetti
A74: 2003 | B74: Edmonton | C74: Treena Neufeld, Sandra Helmer, Cathie Pearson (Calarco), Curtis Kaplan, Tony Steere, Bruce Morter, Coach - Lynn Howell
A76: 2009 | B76: Southern | C76: Brenda Verpy, Colleen Floberg, Terri Holt, Brett Wren, Mike Hirsche, Jim Smeed, Coach - Mike Fernetti
A78: 2016 | B78: Edmonton | C78: Chris Hyslop, Mike Lacoursiere, Matt Schultz, Rose Gigliuk, Melissa Werrell, Michelle Hoyle, Coach - Casey Campbell
A80: 2024 | B80: Edmonton | C80: Adam Weber, Cody Jubinville, Adam Kemp, Katie Rayner, Keera Usman, Madison Jenkins, Chris Hyslop (Coach)

Sheet Aggregate
A1: ALBERTA'S NATIONAL CHAMPIONS
A2: Starting With Provincial Championships 1974
A4: AGGREGATE
A6: 1975 | B6: Shar Plato (Williams), Doug Carritt, Isabelle Bergman, Lyndell Brekko, Sandra Hunt, Linda Malcolmson, Dianne Violini,
B7: Anita Robinson (Doell), John Blyth, Ebba Anderson, Rose Denman, George Hawkins, Barry Desnoyers, Lynn Howell,
B8: Joan Robertson, Dwight Anderson, Clare Lakeman, Bob Leenders, John Martel, Bill Murphy, Al Noppers.
B9: Coaches: Roy Cunningham, Jan Leenders, Gene Gagnon.
A11: 1976 | B11: Shar Plato (Williams), Stan Black, Lyndell Brekko, Eleanor Dorigatti, Louise Plato, Dianne Violini, Anita Robinson(Doell)
B12: Karyln Spitzer (Kanewischer), Sharon Capewell, Chris MacKinnon, Faylene Valdes, Gene Balone, Don Sim,
B13: Ron Sansom, Tom Campbell, Ray Miller, Bob Miller, Wilf Appel, Dave Lewis, Al Hong, Larry Ellert.
B14: Coaches: Steve Pedersen, Tom Campbell, Don Sim.
A16: 1981 | B16: Diane Morrical, Darrell Lagler, Jeanette Smeed, Lyndell Brekko, Alice Kolibas, Dianne Gerhring, Anita Robinson (Doell),
B17: Dianne Violini, Janet Froehlich, Alvina Cunningham (Brettnell), Joanne Dewalt, Ken Kurtz, Harry Topliffe, Bob Costanzo,
B18: Frank Fernetti, Brian Stonehouse, Ed Burwash, Roy Cunningham, Ken Malcolmson, Jack Smeed.
B19: Coaches: Gus Plato, Jerry Mezei, Don Gill.
A21: 1984 | B21: Bev Meyer(Gigliuk), Ken Norris, Gale Morrical, Germaine Knipple, Billie Wood, Geraldine Ford, Sandy Barnes,
B22: Tammy Richardson, Barb Douglas(Stratton), Bea MacPhail, Al Scheer, Brian McGillivry, Bill Schwalm,
B23: Joe Wood, Greg Gigliuk, Lawerence Fobert, Jan Andersen, Dave Nelson, Bill Tronnes, Gary Tunbridge.
B24: Coaches: Louise Holmes, Fran Clarke, Tom Alford
A26: 1985 | B26: Bev Meyer (Gigliuk), Roy Cunningham, Germaine Knipple, Phyl Ward, Billie Wood, Carol Bradford,
B27: Nancy Gervais, Lorraine Gervais, Lynn Holt, Mearle Lepla, Barry Ellert, Reggie Zwicker, Dave Sanderson,
B28: Bob Miller, Bill Todd, Ken Kurtz, Roy Cunningham, Ryan Bader, Tom Stevenson, Harry Topliffe.
B29: Coaches: Louise Holmes, Don Sim, Jerry Mezei.
A31: 1994 | B31: Bev Gigliuk, Russ Baldwin, Lainie Mailer, Tracy Boytel (Smith), Adele Burynuik, Donna Heidinger, Lil Broda,
B32: Pam Ibach (Horne), Marcy Clapp, Janice Jensen, Carol Swartz, Bruce Morter, Ken Klassen, Dwight Anderson,
B33: John Martel, Lynn Howell, Barrett Gamble, Clare Lakeman, Bob Bruneau, Tom Stevenson.
B34: Coaches: Tom Boytel, Danny Clapp, Ian Fraser.
A36: 1996 | B36: Jennifer Marshall, Steve Cummings, Anne Norris, Jeannette Beaulieu (Doyle), Judy Kanigan (Stratton),
B37: Annette Bruneau, Rachel McDonald (Auger),Leanne Ericksen, Sandra Helmer, Lisa Hargrove,
B38: Brad Anderson, Gerald Parker, John Martel, Len Madarash, Steve Cummings, Bruce Morter,
B39: Barrett Gamble, Richard Salyzyn, Kevin Kohut, Brian Goodhope.
B40: Coaches: Don Marshall, Dwight Anderson, Lynn Howell.
A42: 1998 | B42: Penny Noble (Hepfner), Bruce Morter, Jennifer Marshall, Rachel McDonald (Auger), Anne Norris, Susan Anderson,
B43: Pamela Marshall (Wilson), Debbie Boswell, Shannon Scott (Clinton), Judy Kanigan (Stratton), Linda Raymond, Bob Miller,
B44: Don Sim, Scott Laing, Colin Keir, Lynn Howell, Mike Tweedy, Brad Anderson, Tom Stevenson, Len Madarash.
B45: Coaches: Don Marshall, Rick Wagner, Don MacIver.
A47: 2000 | B47: Jennifer Marshall, Gene Ziebarth, Stacey Sanderson, Brenda Closen (McCannel), Pam Marshall (Wilson),
B48: Debbie Boswell, Rachel McDonald (Auger), Tracey Ranta (Holdsworth), Jeannette Doyle,
B49: Gail Sweeney (Elaschuk), Greg Koch, Doug Goodman, Len Pharoah, John Drnasin, Tom Stevenson,
B50: Mark Jackson, Gord Mattern, Bruce Morter, Jim Norkus, Kevin Johnson.
B51: Coaches: Don Marshall, Fran Clarke, Don MacIver.
A53: 2003 | B53: Tracy Smith, Tom Stevenson, Dianne Violini, Michelle Cavanaugh, Kara Kurtz, Penny Noble (Hepfner), Bobbi Sisko,
B54: Colleen Gleed, Treena Neufeld, Sandra Helmer, Cathie Pearson, Curtis Kaplan, Tony Steere, Bruce Morter,
B55: Mark Jackson, Jim Norkus, Mark Johnstone, Cassey Campbell, Sean Smith, Darrell Bradley.
B56: Coaches: Jack Smeed, Lynn Howell, Don MacIver.
A58: 2010 | B58: Dianne Violini, Mark Johstone, Tracy Smith, Tracey Holdsworth, Brenda McCannel, Stacey Sanderson, Jeri-Lee Miller,
B59: Melynda Bruneau, Colin Christensen, Rick Heinrich, Kyle Greggain, Jennifer Ladan, Pamela Wilson, Beverley Magnus,
B60: Tim Wiseman, Bruce Morter, Brett Mapstone, Sean Heller, Dexter Wiseman
B61: Coaches: Geoff Wilson , Linda Raymond, Lynn Howell.
A63: 2013 | B63: Dianne Violini, Victor Fobert, Michelle Hoyle, Heidi Mapstone, Halea DeSutter, Jennifer Baker, Caity Shearer,
B64: Annette Campbell, Amanda Bell, Kristin Heller, Jennifer Baldwin, Mark Graff, Bruce Morter, Adam Kemp,
B65: Brett Mapstone, Tim Wiseman, Rimo Nester, Matt Schultz, Sean Smith, Dexter Wiseman
B66: Coaches: Gerry Anderson, Lynn Howell, Cassey Campbell
A68: 2014 | B68: Jennifer Ladan, Beverley Magnus, JeriLee Meadus, Melynda Bruneau, Sheena Owens, Ann-Marie Wilton, Stacey
B69: Sanderson-Weber, Annette Bruneau, Brittney Johnson, Derek Home, Kyle Greggain, Harvie Pocza, Eric Christenson,
B70: Mark Miller, Rick Heinrich, Bryan Hirst, Rob Wolfson, Rich Weber
B71: Coaches: Brenda McCannel, Tom Stevenson, Brian Rossetti
A73: 2017 | B73: Michele Hoyle, Rose Gigliuk, Michelle Heidinger, Caity Hicks, Halea DeSutter, Julie Orobko, Adam Weber, Freddie
B74: Tofflemire, Adam Kemp, Tim Wiseman, Sean Heller, Evan Lacoursiere, Susan Anderson, Christine Pocza, Christie
B75: Wright, Harvie Pocza, Mark Polivchuk, Rick Heinrich
B76: Coaches: Len Madarash, Mike Lacoursiere, Geoff Wilson
A78: 2019 | B78: Heidi Mapstone, Jennifer Baker, Michelle Heidinger, Katie Rayner, Annette Campbell, Rose Gigliuk, Tim Wiseman,
B79: Adam Weber, Dexter Wiseman, Bradly Tytgat, Michael Marciano, Curtis Dunis, Brett Wren, Brett Mapstone,
B80: Adam Kemp, Brittnee Lakusta, Julie Orobko, Christine Wren
B81: Coaches- Desiree Tytgat, Lynn Howell, Gerry Anderson
A83: 2022 | B83: Jenna Lamoureux, Heidi Mapstone, Julie Orobko, Katie Rayner, Michelle Hoyle, Katelyn Ayoub
B84: Adam Weber, Tyler Tytgat, Tim Wiseman, Adam Kemp, Bradly Tytgat, Brett Wren
B85: Beverly Magnus, Deena Ritchie, Pamela Wilson, Rob Wolfson, Ian Howe, Mike Herbert
B86: Coaches: Len Madarash, Lynn Howell, Geoff Wilson
A88: 2024 | B88: Jenna Lamoureux, Katelynn Ayoub, Julie Orobko, Jamie McAra, Heidi Mapstone, Natalya Langevin
B89: Thomas Tomkins, Robert Tomkins, Dustin Thompson, Israel Bellavance, Sean Tomkins, Rylan Willier
B90: Adam Weber, Cody Jubinville, Adam Kemp, Katie Rayner, Keera Usman, Madison Jenkins
B91: Coaches: Gerald Hafner, Desiree Tytgat, Chris Hyslop
A93: Provincial Aggregate Champions
A95: 1974 | B95: Edmonton | D95: 1986 | E95: Edmonton | G95: 1998 | H95: Calgary | J95: 2010 | K95: Calgary | M95: 2022 | N95: Edmonton
A96: 1975 | B96: Edmonton | D96: 1987 | E96: Southern | G96: 1999 | H96: Calgary | J96: 2011 | K96: Calgary | M96: 2023 | N96: Edmonton
A97: 1976 | B97: Calgary | D97: 1988 | E97: Edmonton? | G97: 2000 | H97: Calgary | J97: 2012 | K97: Edmonton | M97: 2024 | N97: Edmonton
A98: 1977 | B98: Southern | D98: 1989 | E98: Southern | G98: 2001 | H98: Calgary | J98: 2013 | K98: Edmonton
A99: 1978 | B99: Southern | D99: 1990 | E99: Central | G99: 2002 | H99: Southern | J99: 2014 | K99: Calgary
A100: 1979 | B100: Edmonton | D100: 1991 | E100: Northern | G100: 2003 | H100: Edmonton | J100: 2015 | K100: Calgary
A101: 1980 | B101: Edmonton | D101: 1992 | E101: Southern | G101: 2004 | H101: Edmonton | J101: 2016 | K101: Edmonton
A102: 1981 | B102: Southern | D102: 1993 | E102: Central | G102: 2005 | H102: Calgary | J102: 2017 | K102: Edmonton
A103: 1982 | B103: Calgary | D103: 1994 | E103: Edmonton | G103: 2006 | H103: Calgary | J103: 2018 | K103: Calgary
A104: 1983 | B104: Calgary | D104: 1995 | E104: Central | G104: 2007 | H104: Edmonton | J104: 2019 | K104: Edmonton
A105: 1984 | B105: Central | D105: 1996 | E105: Edmonton | G105: 2008 | H105: Calgary | J105: 2020 | K105: Covid
A106: 1985 | B106: Southern | D106: 1997 | E106: Calgary | G106: 2009 | H106: Calgary | J106: 2021 | K106: Covid

Sheet 40 Year Allstars
A1: 40 YEARS OF EXCELLENCE - ALBERTA CHAMPIONS
B3: Total | C3: National | D3: Men's | E3: Ladies | F3: Mixed | G3: Men's | H3: Ladies
B4: Nationals | C4: Gold | D4: Teams | E4: Teams | F4: Teams | G4: Singles | H4: Singles
A6: Allstar Men (Minimum 5 Nationals)
A8: Bruce Morter | B8: =SUM(D8:H8) -> 13 | C8: 7 | D8: 8 | F8: 3 | G8: 2
A9: Tom Stevenson | B9: 10 | C9: 4 | D9: 5 | F9: 3 | G9: 2
A10: Lawrence Fobert | B10: 9 | C10: 4 | D10: 7 | G10: 2
A11: Greg Gigliuk | B11: 9 | C11: 3 | D11: 5 | F11: 3 | G11: 1
A12: Roy Cunningham | B12: 9 | C12: 2 | D12: 5 | F12: 3 | G12: 1
A13: Lynn Howell | B13: 8 | C13: 3 | D13: 4 | F13: 3 | G13: 1
A14: Bob Miller | B14: 7 | C14: 1 | D14: 1 | F14: 6
A15: Jan Andersen | B15: 6 | C15: 4 | D15: 3 | F15: 2 | G15: 1
A16: Gene Ziebarth | B16: =SUM(D16:H16) -> 6 | C16: 3 | D16: 4 | G16: 2
A17: Mark Johnstone | B17: =SUM(D17:H17) -> 6 | C17: 3 | D17: 5 | G17: 1
A18: Adam Weber | B18: =SUM(D18:H18) -> 6 | C18: 2 | D18: 2 | F18: 2 | G18: 2
A19: Mark Jackson | B19: 6 | C19: 2 | D19: 4 | F19: 1 | G19: 1
A20: Dwight Anderson | B20: 6 | C20: 1 | D20: 3 | F20: 2 | G20: 1
A21: Ken Kurtz | B21: 6 | C21: 1 | D21: 5 | F21: 1
A22: Colin Keir | B22: 6 | D22: 4 | F22: 2
A23: TJ Carriere | B23: =SUM(D23:H23) -> 5 | C23: 2 | D23: 2 | F23: 3
A24: Brian Stonehouse | B24: 5 | C24: 1 | D24: 4 | F24: 1
A25: Ken Malcomson | B25: 5 | C25: 1 | D25: 3 | F25: 1 | G25: 1
A26: Dan Rattai | B26: 5 | C26: 1 | D26: 2 | F26: 3
A27: John Martel | B27: 5 | C27: 1 | D27: 1 | F27: 4
A28: Brian Rossetti | B28: 5 | D28: 5
A30: Allstar Women (Minimum 5 Nationals)
A32: Dianne Violini | B32: =SUM(D32:H32) -> 19 | C32: 3 | E32: 10 | F32: 2 | H32: 7
A33: Tracy Smith | B33: 10 | C33: 1 | E33: 7 | F33: 2 | H33: 1
A34: Jennifer Marshall | B34: 9 | C34: 3 | E34: 5 | H34: 4
A35: Bev Gigliuk | B35: 9 | C35: 1 | E35: 3 | H35: 6
A36: Lyndell Brekko | B36: 8 | C36: 2 | E36: 5 | F36: 2 | H36: 1
A37: Penny Hepfner | B37: 8 | C37: 1 | E37: 6 | H37: 2
A38: Judy Stratton | B38: 7 | C38: 1 | E38: 5 | F38: 2
A39: Beverley Magnus | B39: =SUM(D39:H39) -> 7 | E39: 4 | F39: 1 | H39: 2
A40: Annette Bruneau | B40: 7 | C40: 2 | E40: 3 | F40: 4
A41: Michelle Hoyle | B41: =SUM(D41:H41) -> 6 | E41: 3 | F41: 2 | H41: 1
A42: Janice Lacoursiere | B42: 6 | E42: 3 | F42: 2 | H42: 1
A43: Stacey Sanderson | B43: =SUM(D43:H43) -> 6 | E43: 5 | F43: 1
A44: Jennifer Ladan | B44: =SUM(D44:H44) -> 6 | E44: 3 | F44: 3
A45: Jeanette Smeed | B45: 5 | C45: 1 | E45: 4 | F45: 1
A46: Bobbi Sisko | B46: 5 | E46: 2 | F46: 1 | H46: 2
A47: Gerry Anderson | B47: 5 | E47: 4 | H47: 1
A48: Susan Anderson | B48: 5 | E48: 4 | H48: 1
A49: Brenda McCannel | B49: 5 | E49: 4 | F49: 1
A50: Traudi Hesp | B50: 5 | E50: 5
A51: Michele Cavanaugh | B51: 5 | E51: 5
A52: Pamela Wilson | B52: 5 | E52: 3 | F52: 2
A54: Zones
A56: Edmonton | B56: =SUM(D56:H56) -> 56 | C56: 11 | D56: 16 | E56: 12 | F56: 12 | G56: 8 | H56: 8
A57: Calgary | B57: =SUM(D57:H57) -> 54 | C57: 11 | D57: 8 | E57: 11 | F57: 16 | G57: 11 | H57: 8
A58: Southern | B58: =SUM(D58:H58) -> 44 | C58: 7 | D58: 9 | E58: 11 | F58: 7 | G58: 4 | H58: 13
A59: Central | B59: =SUM(D59:H59) -> 32 | C59: 8 | D59: 7 | E59: 4 | F59: 4 | G59: 10 | H59: 7
A60: Northern | B60: =SUM(D60:H60) -> 14 | E60: 2 | F60: 1 | G60: 7 | H60: 4
A62: Allstar Coaches (Minimum 3 Nationals)
A64: Lynn Howell | B64: =SUM(D64:H64) -> 7 | C64: 3 | D64: 5 | F64: 2
A65: Jack Smeed | B65: =SUM(D65:H65) -> 6 | C65: 1 | D65: 3 | E65: 1 | F65: 2
A66: Dwight Anderson | B66: 4 | C66: 1 | D66: 2 | F66: 2
A67: Tom Boytel | B67: 4 | C67: 1 | E67: 3 | F67: 1
A68: Mike Violini | B68: 4 | E68: 4
A69: Linda Raymond | B69: 4 | D69: 1 | E69: 1 | F69: 2
A70: Don MacIver | B70: 3 | C70: 3 | D70: 3
A71: Brian Rossetti | B71: 3 | C71: 2 | D71: 1 | F71: 2
A72: Don Marshall | B72: 3 | C72: 1 | E72: 3
A73: Don Sim | B73: 3 | C73: 1 | F73: 3
A74: Gene Gagnon | B74: 3 | C74: 1 | D74: 1 | E74: 2
A75: Tom Alford | B75: 3 | C75: 1 | D75: 2 | F75: 1
A76: Don Gill | B76: 3 | D76: 1 | E76: 1 | F76: 1
A77: Doug Goodman | B77: 3 | D77: 1 | F77: 2
A78: Louise Holmes | B78: 3 | E78: 3
A79: Geoff Wilson | B79: =SUM(D79:H79) -> 3 | E79: 3
A80: Debbie Boswell | B80: 3 | E80: 2 | F80: 1
A81: Linda Raymond | B81: =SUM(D81:H81) -> 3 | D81: 1 | E81: 1 | F81: 1

Sheet Western Canada
B1: ALBERTA'S WESTERN CANADIAN CHAMPIONS
D3: Prior to Provincial Championships (1946 - 1973)
B5: 1945 Telgraphic Competion. 1946 - 2 Centers Used: Regina & Edmonton. 1947 One Site
B7: LADIES SINGLES | F7: MENS SINGLES
B8: 1946 | C8: Jean Bray (Morgan) - Calgary | F8: 1946 | G8: R.Jones - Edmonton
B9: 1947 | C9: Babs Jefferies (Oakenfold) - Calgary | F9: 1948 | G9: Jack Smith - Calgary
B10: 1949 | C10: Lil Machon - Calgary | F10: 1969 | G10: Jack Smeed - Southern
B11: 1950 | C11: Mary Currie - Calgary | F11: 1972 | G11: Bill Murphy - Edmonton *
B12: 1953 | C12: Mary Currie - Calgary | F12: 1973 | G12: Stan Hesp- Edmonton
B13: 1954 | C13: Mary Currie - Calgary *
B14: 1957 | C14: Elvera Laughey (Forwick)- Edmonton *
B15: 1960 | C15: Mary Currie - Calgary
B16: 1965 | C16: Jeanette Neuberger (Smeed)-Southern
B17: 1967 | C17: Shirley Miller (Eby) - Calgary
B18: 1968 | C18: Shirley Miller (Eby) - Calgary
B19: 1969 | C19: Emma Johanson - Calgary
B20: 1970 | C20: Mary McConaghie - Edmonton
D22: LADIES TEAMS
A24: 1945 | B24: Calgary | C24: Jean Bray (Morgan), Babs Jefferies (Oakenfold), Lil Machon, Millie Luft,
A25: 1946 | B25: Edmonton | C25: Marg Asquin, Vi Foster, Evelyn Green, Marie Sangster, May Smith
A26: 1947 | B26: Calgary | C26: Corinne Lucas, Helen Ager, Ev Graham, Tillie Peters, Millie Luft
A27: 1949 | B27: Calgary | C27: Ella Young, Lil Machon, Millie Luft, Anne Palin, Ruth Harris
A28: 1954 | B28: Calgary | C28: Lil Machon, Babs Oakenfold, Ruth Harris, Flo Befus, Mary Currie, Ruby Befus - Coach Ken McDiarmid *
A29: 1957 | B29: Calgary | C29: Mary Currie, Babs Oakenfold, Ruth Harris, Helen Ager, Joan Martin,Coach: Ron Young
A30: 1963 | B30: Edmonton | C30: Sis Maltin, Marilyn Kerswell, Nell St.Lawrence, Del Gagnon, Loreen Mckellar, Emma Bush
C31: Coach: Ann Tischer *
A32: 1964 | B32: Calgary | C32: Shirley Miller (Eby),Mary Currie,Marie Stroh, Marna Thompson, Marg Patterson
C33: Helen Blackburn: Coach - Bill Plumb
A34: 1971 | B34: Edmonton | C34: Ebba Anderson, Nina Ible, Ruth Benson, Ivy Farrage, Mary McConaghie, Audrey Sakowsky(Marusin)
C35: Chris Vaughan, Coach: - Gene Gagnon
A36: 1972 | B36: Southern | C36: Jeanette Smeed, Shar Plato (Williams), Dianne Violini, Bea Salmon, Eleanor Dorgatti, Louise Plato,
C37: Sandra Westling: Coach - Len Herring
D39: MIXED TEAMS
A40: 1947 | B40: Calgary | C40: Mary Currie, Anne Palin, Babs Jefferies(Oakenfold), Al Bannister, Bob Roggia
A41: 1949 | B41: Calgary | C41: Mary Currie, Anne Palin, Millie Luft, Al Bannister, Tom Campbell
A42: 1950 | B42: Edmonton | C42: Vern Mohs,Marg Peacock,Meg Warren,Marie Sangster,Jim Rutherford,
A43: 1952 | B43: Calgary | C43: Babs Oakenfold, Mary Currie, Flo Befus, Banny Bannister, Mo Trevelyan
A44: 1953 | B44: Calgary | C44: Babs Oakenfold, Flo Befus, Mary Currie, Sandy Luft, Mo Trevelyan
A45: 1960 | B45: Calgary | C45: Flo Befus, Marry Currie, Cec Diett (Bullen),Marie Stroh, Jack Sadlick, Mo Trevelyan, Ron McGill
C46: Coach: Ken McDiarmid
A47: 1962 | B47: Edmonton | C47: Del Gagnon,Elvera Forwick, Meg Warren,Doris Lawrence,Peter Marusin,Jan Leenders,Len Karlson
C48: Coach: Harry Crockett
A49: 1964 | B49: Calgary | C49: Peg Herner, Helen Blackburn, Marie Stroh, Mary Currie, Tom Campbell, Stan Black, Don Sim
C50: Coach: Bill Plumb *
A51: 1970 | B51: Southern | C51: Dianne Violini, Lyndell Kurtz (Brekko),Jeanette Smeed, Gwen Kapcala, Jack Smeed, Bill Thomas,
C52: Gary Tunbridge, Coach : - Len Herring
A53: 1971 | B53: Southern | C53: Dianne Violini, Lyndell Kurtz (Brekko), Eleanor Dorigatti, Lil Fach, Steve Pederson, Jack Smeed
C54: Bill Thomas, Coach: Frank Winchester
A55: 1972 | B55: All Star | C55: Ebba Anderson, Irene Jevne, Emma Johanson, Donna Derin, Jack Smeed, Bill Thomas,
C56: John Rempel : Coach - Len Herring*
D59: MENS TEAMS
A60: 1957 | B60: Calgary | C60: Neale Roche, Tom Campbell, Mo Trevelyan, Bob McColm, Ron Sansom, Al Bannister
C61: Coach: Baldy Baldwin *
A63: 1967 | B63: Southern | C63: Jack Smeed, Stan Woodward, Bill Thomas, Bert Mezei, Gary Tunbridge, Bud Elliott
C64: Coach: Reg Smeed *
A66: 1969 | B66: Southern | C66: Jack Smeed, Steve Pedersen, John Rempel, Bill Thomas, Ken Mogus, Stan Woodward,Francis Higa,
C67: Coach : Len Herring
A69: 1972 | B69: All Star | C69: Stan Hesp, Clare Lakeman, Tom Campbell, Don Sim, Gary Tunbridge, John Rempel
C70: Coach: Gene Gagnon *
D72: AGGREGATE
A74: 1946 | B74: Edmonton | C74: Marg Asquin, Vi Foster, Evelyn Green, Marie Sangster, Mary Smith + Mens team members.
A75: 1947 | B75: Calgary | C75: Mary Currie, Babs Jefferies(Oakenfold),Anne Palin,Corinne Lucas, Helen Ager, Ev Graham,Tillie Peters,
C76: Millie Luft, Bob Roggia, Harry Johnson, Jimmie Haxton, Alec McWilliams, Bob Borland, Al Bannister
C77: Percy Timms, Bill Rogers.
A78: 1949 | B78: Calgary | C78: Mary Currie, Anne Palin, Millie Luft, Ruth Harris, Ella Young, Lil Machon, Bob Borland, Ron Young
C79: Vic Aldrich, Harry Johnson, Al Bannister, Tom Campbell
A80: 1953 | B80: Calgary | C80: Mary Currie, Babs Oakenfold, Flo Befus, Teddy Fraser, Lil Machon, Marie Stroh, Ron Young, Sandy Luft
C81: Mo Trevelyan, Walter Jarret, Bob Borland, Vic Aldrich
A82: 1957 | B82: Calgary | C82: Neale Roche, Tom Campbell, Mo Trevelyan, Bob McColm, Ron Sansom, Al Bannister, Art Parker
C83: Mary Currie, Babs Oakenfold, Ruth Harris, Helen Ager, Joan Martin, Marg Dick, Irene Covey(Hill) Mary Border
A84: 1960 | B84: Calgary | C84: Flo Befus, Marry Currie, Cec Diett (Bullen),Marie Stroh, Helen Ager, Sylvia Martin, Marg Peacock,
C85: Jack Sadlick, Mo Trevelyan, Mike McClusky, Ron McGill, Bev Nicholls, Howie White - Coach: Tom Campbell
A86: 1964 | B86: Calgary | C86: Shirley Miller (Eby),Mary Currie,Marie Stroh,Helen Blackburn,Marg Patterson.Marna Thompson,Peg Herner
C87: Tom Campbell,Stan Black,Don Sim,Bob French,Bob Miller,Earl Mosley Coach: Bill Plumb
A88: 1966 | B88: Calgary | C88: Shirley Miller (Eby),Betty Nason, Emma Johanson, Helen Ager, Mary Currie,Sylvia Heater,Cathy Taylor.
C89: Howie Jaquish, Larry Burrell, Lloyd Herner, Stan Black, Ron Sansom, Bob French, Dave Alexander
C90: Coaches: Al Bannister, Earl Mosley
A91: 1969 | B91: Southern | C91: Lyndell Kurtz (Brekko), Dianne Pedersen (Violini) ,Jeanette Smeed, Isabelle Bergman, Eleanor Dorigatti
C92: Sumi Medoruma, Jack Smeed, Steve Pedersen, John Rempel, Bill Thomas, Ken Mogus,Stan Woodward
C93: Francis Higa, Coach: Len Herring
A94: 1972 | B94: All Star | C94: Stan Hesp, Clare Lakeman, Tom Campbell, Don Sim, Gary Tunbridge, John Rempel,
C95: Ebba Anderson, Irene Jevne, Emma Johanson, Donna Derin, Jack Smeed, Bill Thomas
C96: Coaches: Gene Gagnon, Len Herring *
C99: * National Champion
C100: National Championships 1953 Mens Singles and Teams Only : 1954 Full Contingent
C101: No National Championships from 1969 - 1971 : Provincial All Star Teams competed in Western Canada
C102: Zones consisted of 7 Ladies and 6 Men - 8 Game Total Pinfall
C103: Singles 5 Ladies & 5 men top 50% advance after 4 games.
C104: Mixed team comprised of 4 Ladies and 3 Men that also bowled on Ladies & Mens Teams.

Sheet 40 Year Data- Don't Print (hidden)
A1: Participant | B1: Capacity | C1: Year | D1: National Champ
A2: Barett Gamble | B2: CL | C2: 2007
A3: Bert Mezei | B3: CM | C3: 1977
A4: Bill Francis | B4: CL | C4: 1987
A5: Bob Edmonds | B5: CM | C5: 1995
A6: Bob Edmonds | B6: CM | C6: 1997
A7: Bob Guthrie | B7: CX | C7: 1989
A8: Bob Guthrie | B8: CM | C8: 2006
A9: Brenda McCannel | B9: CL | C9: 2011
A10: Brian Goodhope | B10: CL | C10: 1988
A11: Brian Rossetti | B11: CX | C11: 2002 | D11: Y
A12: Brian Rossetti | B12: CX | C12: 2006
A13: Brian Rossetti | B13: CM | C13: 2011 | D13: Y
A14: Brian Stonehouse | B14: CX | C14: 1987
A15: Cassey Campbell | B15: CX | C15: 2012
A16: Cassey Campbell | B16: CM | C16: 2013
A17: Cisco Beyersbergen | B17: CX | C17: 2007
A18: Dale Holfeld | B18: CX | C18: 2004
A19: Danny Clapp | B19: CX | C19: 1993
A20: Danny Clapp | B20: CX | C20: 1994
A21: Debbie Boswell | B21: CL | C21: 2002
A22: Debbie Boswell | B22: CL | C22: 2005
A23: Debbie Boswell | B23: CX | C23: 2011
A24: Don Gill | B24: CL | C24: 1986
A25: Don Gill | B25: CM | C25: 1981
A26: Don Gill | B26: CX | C26: 1990
A27: Don MacIver | B27: CM | C27: 1998 | D27: Y
A28: Don MacIver | B28: CM | C28: 2000 | D28: Y
A29: Don MacIver | B29: CM | C29: 2003 | D29: Y
A30: Don Marshall | B30: CL | C30: 1996 | D30: Y
A31: Don Marshall | B31: CL | C31: 1998
A32: Don Marshall | B32: CL | C32: 2000
A33: Don Sim | B33: CX | C33: 1976
A34: Don Sim | B34: CX | C34: 1977
A35: Don Sim | B35: CX | C35: 1985 | D35: Y
A36: Doug Goodman | B36: CM | C36: 1983
A37: Doug Goodman | B37: CX | C37: 1982
A38: Doug Goodman | B38: CX | C38: 1999
A39: Dwight Anderson | B39: CM | C39: 1988
A40: Dwight Anderson | B40: CM | C40: 1990 | D40: Y
A41: Dwight Anderson | B41: CX | C41: 1996
A42: Dwight Anderson | B42: CX | C42: 2005
A43: Ed Gabrielson | B43: CM | C43: 1992 | D43: Y
A44: Ed Gabrielson | B44: CM | C44: 1993 | D44: Y
A45: Eric Andersen | B45: CM | C45: 2001 | D45: Y
A46: Fran Clark | B46: CX | C46: 1984
A47: Fran Clark | B47: CX | C47: 2000 | D47: Y
A48: Frank Fernetti | B48: CX | C48: 1992 | D48: Y
A49: Frank Fernetti | B49: CX | C49: 2009 | D49: Y
A50: Fred Anderson | B50: CM | C50: 2002
A51: Fred Anderson | B51: CM | C51: 2009
A52: Gary Abrams | B52: CL | C52: 1991
A53: Gene Gagnon | B53: CL | C53: 1979
A54: Gene Gagnon | B54: CL | C54: 1980
A55: Gene Gagnon | B55: CM | C55: 1975 | D55: Y
A56: Gerry Anderson | B56: CL | C56: 2012 | D56: Y
A57: Gerry Anderson | B57: CL | C57: 2013
A58: Geoff Wilson | B58: CL | C58: 2008
A59: Geoff Wilson | B59: CL | C59: 2009
A60: Geoff Wilson | B60: CL | C60: 2010
A61: George Lund | B61: CM | C61: 1986
A62: Gus Plato | B62: CL | C62: 1981
A63: Ian Fraser | B63: CM | C63: 1994
A64: Ian Fraser | B64: CX | C64: 1986
A65: Jack Smeed | B65: CL | C65: 2003
A66: Jack Smeed | B66: CM | C66: 1979
A67: Jack Smeed | B67: CM | C67: 1982
A68: Jack Smeed | B68: CM | C68: 1987
A69: Jack Smeed | B69: CX | C69: 1974 | D69: Y
A70: Jack Smeed | B70: CX | C70: 1978
A71: Jan Leenders | B71: CM | C71: 1974
A72: Jan Leenders | B72: CX | C72: 1975
A73: Jerry Kind | B73: CX | C73: 1997
A74: Jerry Mezei | B74: CM | C74: 1985 | D74: Y
A75: Jerry Mezei | B75: CX | C75: 1981
A76: Jim Hohne | B76: CX | C76: 1991
A77: John Martel | B77: CM | C77: 1980
A78: John Mathews | B78: CX | C78: 1980
A79: Ken Kurtz | B79: CL | C79: 2006
A80: Lawrence Fobert | B80: CL | C80: 1997
A81: Linda Raymond | B81: CL | C81: 2001
A82: Linda Raymond | B82: CM | C82: 2007
A83: Linda Raymond | B83: CX | C83: 2008
A84: Linda Raymond | B84: CX | C84: 2010
A85: Louise Holmes | B85: CL | C85: 1984
A86: Louise Holmes | B86: CL | C86: 1985
A87: Louise Holmes | B87: CL | C87: 1990
A88: Lynn Howell | B88: CM | C88: 1996
A89: Lynn Howell | B89: CX | C89: 2003 | D89: Y
A90: Lynn Howell | B90: CM | C90: 2004
A91: Lynn Howell | B91: CM | C91: 2008 | D91: Y
A92: Lynn Howell | B92: CM | C92: 2010 | D92: Y
A93: Lynn Howell | B93: CM | C93: 2012
A94: Lynn Howell | B94: CX | C94: 2013
A95: Mike Tweedy | B95: CM | C95: 2005 | D95: Y
A96: Mike Violini | B96: CL | C96: 1983
A97: Mike Violini | B97: CL | C97: 1989
A98: Mike Violini | B98: CL | C98: 1992
A99: Mike Violini | B99: CL | C99: 1993
A100: Neils Jensen | B100: CL | C100: 1974
A101: Neils Jensen | B101: CL | C101: 1978
A102: Pat Elliott | B102: CL | C102: 1995
A103: Rick Nowosad | B103: CX | C103: 2001
A104: Rick Wagner | B104: CX | C104: 1998
A105: Roy Cunningham | B105: CL | C105: 1975 | D105: Y
A106: Shar Williams | B106: CL | C106: 1982 | D106: Y
A107: Shar Williams | B107: CX | C107: 1983
A108: Shelley Struthers | B108: CM | C108: 1999
A109: Stan Hesp | B109: CX | C109: 1979
A110: Steve Pedersen | B110: CL | C110: 1976
A111: Tom Alford | B111: CM | C111: 1984
A112: Tom Alford | B112: CX | C112: 1988 | D112: Y
A113: Tom Alford | B113: CM | C113: 1991
A114: Tom Boytel | B114: CL | C114: 1994 | D114: Y
A115: Tom Boytel | B115: CL | C115: 1999
A116: Tom Boytel | B116: CX | C116: 1995
A117: Tom Boytel | B117: CL | C117: 2004
A118: Tom Campbell | B118: CM | C118: 1976 | D118: Y
A119: Vic Collomb | B119: CL | C119: 1977
A120: Vic Collomb | B120: CM | C120: 1978
A121: Wilf Kuss | B121: CM | C121: 1989
A124: Adam Kemp | B124: X | C124: 2013
A125: Adam Weber | B125: X | C125: 2006
A126: Adam Weber | B126: M | C126: 2007
A127: Adam Weber | B127: MS | C127: 2007 | D127: Y
A128: Adam Weber | B128: X | C128: 2008
A129: Adam Weber | B129: M | C129: 2011 | D129: Y
A130: Adam Weber | B130: MS | C130: 2011
A131: Adele Burynuik | B131: LS | C131: 1990
A132: Adele Burynuik | B132: LS | C132: 1993
A133: Adele Burynuik | B133: L | C133: 1994 | D133: Y
A134: Adele Burynuik | B134: X | C134: 1995
A135: Al Hong | B135: M | C135: 1976 | D135: Y
A136: Al Hong | B136: X | C136: 1980
A137: Al Kosciuk | B137: X | C137: 2008
A138: Al Noppers | B138: M | C138: 1975 | D138: Y
A139: Al Scheer | B139: X | C139: 1977
A140: Al Scheer | B140: X | C140: 1984
A141: Aldo Serblin | B141: X | C141: 1977
A142: Alice Kolibas | B142: L | C142: 1981
A143: Alison Roberts | B143: L | C143: 2007
A144: Alvina Brettnell (Cunningham) | B144: X | C144: 1981
A145: Alvina Brettnell (Cunningham) | B145: L | C145: 1986
A146: Alvina Brettnell (Cunningham) | B146: L | C146: 1988
A147: Alyssa Madsen | B147: X | C147: 2008
A148: Alyssa Madsen | B148: X | C148: 2011
A149: Amanda Bell | B149: X | C149: 2013
A150: Andrea Leavitt | B150: X | C150: 2004
A151: Andrea Ratcliffe | B151: L | C151: 1990
A152: Anita O'Callaghan | B152: L | C152: 1987
A153: Anita Robinson (Doell) | B153: L | C153: 1975 | D153: Y
A154: Anita Robinson (Doell) | B154: L | C154: 1976
A155: Anita Robinson (Doell) | B155: L | C155: 1977
A156: Anita Robinson (Doell) | B156: L | C156: 1981
A157: Ann Blackford | B157: L | C157: 1974
A158: Anne Norris | B158: L | C158: 1996 | D158: Y
A159: Anne Norris | B159: L | C159: 1998
A160: Annette Bruneau | B160: L | C160: 1996 | D160: Y
A161: Annette Bruneau | B161: X | C161: 1999
A162: Annette Bruneau | B162: X | C162: 2001
A163: Annette Bruneau | B163: X | C163: 2002 | D163: Y
A164: Annette Bruneau | B164: L | C164: 2005
A165: Annette Bruneau | B165: L | C165: 2011
A166: Annette Campbell (Gamborski) | B166: X | C166: 2007
A167: Annette Campbell (Gamborski) | B167: L | C167: 2012 | D167: Y
A168: Annette Campbell (Gamborski) | B168: L | C168: 2013
A169: Arlene Beerbaum | B169: X | C169: 1982
A170: Aaron Arndt | B170: M | C170: 2012
A171: Audrey Sakowsky | B171: X | C171: 1979
A172: Barb Douglas | B172: X | C172: 1982
A173: Barb Douglas | B173: X | C173: 1984
A174: Barb Masse | B174: L | C174: 1980
A175: Barett Gamble | B175: M | C175: 1994
A176: Barett Gamble | B176: X | C176: 1995
A177: Barett Gamble | B177: M | C177: 1996
A178: Barry Desnoyers | B178: X | C178: 1975
A179: Barry Ellert | B179: X | C179: 1985 | D179: Y
A180: Barry Martin | B180: X | C180: 1983
A181: Barry Urquhart | B181: X | C181: 2005
A182: Bea MacPhail | B182: X | C182: 1984
A183: Bernie Fournier | B183: X | C183: 1990
A184: Bernie Stotyn | B184: M | C184: 1974
A185: Bernie Sutton | B185: MS | C185: 1974
A186: Betty Jensen | B186: L | C186: 1978
A187: Betty Read | B187: L | C187: 1987
A188: Bev Gigliuk (Meyer) | B188: LS | C188: 1983
A189: Bev Gigliuk (Meyer) | B189: L | C189: 1984
A190: Bev Gigliuk (Meyer) | B190: LS | C190: 1984 | D190: Y
A191: Bev Gigliuk (Meyer) | B191: L | C191: 1985
A192: Bev Gigliuk (Meyer) | B192: LS | C192: 1985
A193: Bev Gigliuk (Meyer) | B193: LS | C193: 1987
A194: Bev Gigliuk (Meyer) | B194: LS | C194: 1989
A195: Bev Gigliuk (Meyer) | B195: LS | C195: 1994
A196: Bev Gigliuk (Meyer) | B196: L | C196: 1997
A197: Bev Magnus (Yaworenko) | B197: L | C197: 2005
A198: Bev Magnus (Yaworenko) | B198: LS | C198: 2005
A199: Bev Magnus (Yaworenko) | B199: LS | C199: 2006
A200: Bev Magnus (Yaworenko) | B200: L | C200: 2008
A201: Bev Magnus (Yaworenko) | B201: L | C201: 2009
A202: Bev Magnus (Yaworenko) | B202: X | C202: 2010
... 877 more rows
